{"text_format":"1","workbook":"xlsx","n_sheets":13,"sheets":["PORTADA","MENU","CFDI","CFDIE","RPAGOSE","METADATA","CFDIR","RPAGOSR","METADATAR","VISOR","CATALOGO","c_Estado","DATOS"],"not_rendered":{"charts":0,"images":31,"macros":1,"external_links":0,"defined_names":42,"comments":1,"pivot_tables":0},"unopened":[],"bounds":{"document_bytes":16777216,"sheet_cells":100000,"rows_first":2000,"rows_last":500,"rows_between":2000,"halvings":0,"cell_chars":16384,"cell_head_chars":4096},"cells_cut":0,"cells_raw":0,"read":"whole","date_system":"1900"}

{"sheet":"PORTADA","index":0,"n_rows":331,"n_cols":17,"rows_kept":331,"cut":false,"hidden":false,"merged":[[10,1,10,9],[1,1,9,9],[11,1,26,9]]}
[]
[]
[]
[]
[]
[]
[]
[]
[]
[]
[null,"www.acfmsc.com"]
[]
[]
[]
[]
[]
[]
[]
[]
[]
[]
[]
[]
[]
[]
[]
[]
[]
[]
[null,null,523698741]
[]
[]
[]
[]
[]
[]
[]
[]
[]
[]
[]
[]
[]
[]
[]
[]
[]
[]
[]
[]
[]
[]
[]
[]
[]
[]
[]
[]
[]
[]
[]
[]
[]
[]
[]
[]
[]
[]
[]
[]
[]
[]
[]
[]
[]
[]
[]
[]
[]
[]
[]
[]
[]
[]
[]
[]
[]
[]
[]
[]
[]
[]
[]
[]
[]
[]
[]
[]
[]
[]
[]
[]
[]
[]
[]
[]
[]
[]
[]
[]
[]
[]
[]
[]
[]
[]
[]
[]
[]
[]
[]
[]
[]
[]
[]
[]
[]
[]
[]
[]
[]
[]
[]
[]
[]
[]
[]
[]
[]
[]
[]
[]
[]
[]
[null,null,null,null,null,null,"Rangenom67"]
[]
[]
[]
[]
[]
[null,null,null,null,null,null,null,null,null,"Rangenom67"]
[]
[]
[]
[]
[]
[]
[]
[]
[]
[]
[]
[]
[]
[]
[]
[]
[]
[]
[]
[]
[]
[]
[]
[]
[]
[]
[]
[]
[]
[]
[]
[]
[]
[]
[]
[]
[]
[]
[]
[]
[]
[]
[]
[]
[]
[]
[]
[]
[]
[]
[]
[]
[null,null,null,null,null,null,null,null,null,null,null,"Len@25"]
[]
[]
[]
[]
[]
[]
[]
[]
[]
[]
[]
[]
[]
[]
[]
[]
[]
[]
[]
[]
[]
[]
[]
[]
[]
[]
[]
[]
[]
[]
[]
[]
[]
[]
[]
[]
[]
[]
[]
[]
[]
[]
[]
[]
[]
[]
[]
[]
[]
[]
[]
[]
[]
[]
[]
[]
[]
[]
[]
[]
[]
[]
[]
[]
[]
[]
[]
[]
[]
[]
[]
[]
[]
[]
[]
[]
[]
[]
[]
[]
[]
[]
[]
[]
[]
[]
[]
[]
[]
[]
[]
[]
[]
[]
[]
[]
[]
[]
[]
[]
[]
[]
[]
[]
[]
[]
[]
[]
[]
[]
[]
[]
[]
[]
[]
[]
[]
[]
[]
[]
[null,null,null,null,null,null,null,null,null,null,null,null,null,null,null,67010623]
[]
[]
[]
[]
[]
[null,null,null,null,null,null,null,null,null,null,null,null,null,null,null,null,67010623]

{"sheet":"MENU","index":1,"n_rows":12,"n_cols":3,"rows_kept":12,"cut":false,"hidden":true,"merged":[]}
[]
[]
[]
[]
[null,"Descripción","Nombre de la hoja"]
[null,"Nodos del CFDI","CFDI"]
[null,"Importar archivos XML emitidos","CFDIE"]
[null,"Importar archivos XML emitidos con complemento de pago","RPAGOSE"]
[null,"Impoartar archivo de texto METADATA del SAT de los CFDI emitidos","METADATA"]
[null,"Importar archivos XML recibidos","CFDIR"]
[null,"Importar archivos XML recibidos con complemento de pago","RPAGOSR"]
[null,"Impoartar archivo de texto METADATA del SAT de los CFDI emitidos","METADATAR"]

{"sheet":"CFDI","index":2,"n_rows":95,"n_cols":4,"rows_kept":95,"cut":false,"hidden":true,"merged":[[87,1,87,2],[94,1,94,3],[59,1,59,2],[63,1,63,2],[71,1,71,3],[74,1,74,3],[79,1,79,2],[80,1,80,2],[54,1,54,3],[23,1,23,3],[24,1,24,3],[25,1,25,3],[26,1,26,3],[31,1,31,3],[33,1,33,3],[37,1,37,2],[37,3,37,4],[43,1,43,2],[45,1,45,4],[53,1,53,2],[22,1,22,3],[6,1,6,2],[8,1,8,2],[9,1,9,3],[10,1,10,3],[11,1,11,3],[12,1,12,3],[13,1,13,3],[14,1,14,3],[18,1,18,2],[20,1,20,2],[21,1,21,3]]}
[]
[]
[]
[]
[]
[]
[null,"Nodo comprobante"]
[null,"Fecha de expedición (campo obligatorio)"]
[null,"El lugar y fecha de expedición\nFundamento: Artículo 29-A fracción III CFF\n\nArtículo 39 RCFF.- Para los efectos del artículo 29, segundo párrafo, fracción IV del Código, los contribuyentes deberán remitir al Servicio de Administración Tributaria o al proveedor de certificación de comprobantes fiscales digitales por Internet autorizados por dicho órgano desconcentrado, según sea el caso, el comprobante fiscal digital por Internet, a más tardar dentro de las veinticuatro horas siguientes a que haya tenido lugar la operación, acto o actividad de la que derivó la obligación de expedirlo.",null,"Obligaciones de los proveedores en el proceso de certificación de CFDI\nQue el periodo entre la fecha de generación del documento y la fecha en la que se pretende certificar no exceda de 72 horas, o que dicho periodo sea menor a cero horas, esto lo validarán haciendo uso del huso horario correspondiente al Código Postal registrado en el campo LugarExpedicion, conforme al catálogo “CodigoPostal” del Anexo 20.\nFundamento: Regla 2.7.2.9 fracción I RMF 2024\n\nExpedición de comprobantes en operaciones con el público en general\nPara los efectos del CFDI donde consten las operaciones realizadas con el público en general, los contribuyentes podrán remitir al SAT o al PCCDFI, según sea el caso, el CFDI a más tardar dentro de las 24 horas siguientes al cierre de las operaciones realizadas de manera diaria, semanal, mensual o bimestral.\nFundamento: Regla 2.7.1.21 quinto párrafo RMF 2024"]
[null,"Requisito de las deducciones persona moral régimen general de Ley\nQue al realizar las operaciones correspondientes o a más tardar el último día del ejercicio se reúnan los requisitos que para cada deducción en particular establece esta Ley. Tratándose del comprobante fiscal a que se refiere el primer párrafo de la fracción III de este artículo, éste se obtenga a más tardar el día en que el contribuyente deba presentar su declaración. Respecto de la documentación comprobatoria de las retenciones y de los pagos a que se refieren las fracciones V y VI de este artículo, respectivamente, los mismos se realicen en los plazos que al efecto establecen las disposiciones fiscales, y la documentación comprobatoria se obtenga en dicha fecha. Tratándose de las declaraciones informativas a que se refieren los artículos 76 de esta Ley, y 32, fracciones V y VIII de la Ley del Impuesto al Valor Agregado, éstas se deberán presentar en los plazos que al efecto establece el citado artículo 76 y contar a partir de esa fecha con los comprobantes fiscales correspondientes. Además, la fecha de expedición de los comprobantes fiscales de un gasto deducible deberá corresponder al ejercicio por el que se efectúa la deducción.\nFundamento: Artículo 27 fracción XVIII primer párrafo LISR"]
[null,"Requisito de las deducciones persona moral RESICO\nQue al realizar las operaciones correspondientes o a más tardar el último día del ejercicio, se reúnan los requisitos que para cada deducción en particular establece esta Ley. Tratándose únicamente de los comprobantes fiscales a que se refiere el primer párrafo de la fracción III del artículo 27 de esta Ley, éstos se obtengan a más tardar el día en que el contribuyente deba presentar su declaración de pago provisional y la fecha de expedición de dicho comprobante fiscal deberá corresponder a dicho periodo de pago.\nFundamento: Artículo 210 fracción VIII LISR"]
[null,"Requisito de las deducciones persona física actividad empresarial y profesional\nQue al realizar las operaciones correspondientes o a más tardar el último día del ejercicio, se reúnan los requisitos que para cada deducción en particular establece esta Ley. Tratándose únicamente de los comprobantes fiscales a que se refiere el primer párrafo de la fracción III del artículo 27 de esta Ley, estos se obtengan a más tardar el día en que el contribuyente deba presentar su declaración del ejercicio y la fecha de expedición de dicho comprobante fiscal deberá corresponder al ejercicio en el que se efectúa la deducción.\nFundamento: Artículo 105 fracción VIII LISR"]
[null,"Persona física arrendamiento de inmuebles\nQue al realizar las operaciones correspondientes o a más tardar el último día del ejercicio, se reúnan los requisitos que para cada deducción en lo particular establece esta Ley. Tratándose únicamente del comprobante fiscal a que se refiere el primer párrafo de la fracción IV de este artículo, éste se obtenga a más tardar el día en que el contribuyente deba presentar su declaración del ejercicio y la fecha de expedición del comprobante fiscal deberá corresponder al ejercicio en el que se efectúa la deducción. Tratándose de las declaraciones informativas a que se refieren los artículos 76 de esta Ley y 32, fracciones V y VIII de la Ley del Impuesto al Valor Agregado, éstas se deberán presentar en los plazos que al efecto establece el citado artículo 76 y contar a partir de esa fecha con los comprobantes fiscales correspondientes.\nFundamento: Artículo 147 fracción VIII LISR"]
[null,"Requisito de acreditamiento del IVA\nQue el impuesto al valor agregado trasladado al contribuyente haya sido efectivamente pagado en el mes de que se trate\nFundamento: Artículo 5 fracción III LIVA"]
[null,"Requisito de acreditamiento del IEPS\nQue el impuesto que le haya sido trasladado al contribuyente y que éste pretenda acreditar, haya sido efectivamente pagado a quien efectuó dicho traslado.\nFundamento: Artículo 4 fracción III LIEPS"]
[null,"Serie (campo opcional)"]
[null,"Folio (campo opcional)"]
[null,"Forma de pago (campo condicional)"]
[null,"Señalar la forma en que se realizó el pago, ya sea en efectivo, transferencias electrónicas de fondos, cheques nominativos o tarjetas de débito, de crédito, de servicio o las denominadas monederos electrónicos que autorice el Servicio de Administración Tributaria.\nFundamento: Artículo 29-A fracción VII inciso c) CFF",null,"Forma en que se realizó el pago, se señalará conforme al catálogo “c_FormaPago” que señala el Anexo 20, con la opción de indicar la clave 99 “Por definir” en el caso de no haberse recibido el pago de la contraprestación, siempre que una vez que se reciba el pago o pagos se emita por cada uno de ellos un CFDI al que se le incorpore el “Complemento para recepción de pagos” a que se refiere la regla 2.7.1.32.\nLo señalado en esta fracción no será aplicable en los casos siguientes:\na)\tEn las operaciones a que se refiere la regla 3.3.1.34.\nb)\tCuando la contraprestación se pague en una sola exhibición en el momento en el que se expida el CFDI o haya sido pagada antes de la expedición del mismo.\nTratándose de los supuestos establecidos en los incisos antes señalados, los contribuyentes deberán consignar en el CFDI la clave correspondiente a la forma de pago, de conformidad con el catálogo “c_FormaPago” que señala el Anexo 20.\nFundamento: Regla 2.7.1.29 fracción II RMF 2024"]
[null,"Método de pago (campo condicional)"]
[null,"Los contenidos en las disposiciones fiscales, que sean requeridos y dé a conocer el Servicio de Administración Tributaria, mediante reglas de carácter general.\nFundamento: Artículo 29-A fracción IX CFF",null,"Opción para que en el CFDI se establezca como método de pago “Pago en una sola exhibición”\n2.7.1.39.\tPara los efectos de los artículos 29, párrafos primero, segundo, fracción VI y penúltimo, 29-A, primer párrafo, fracción VII, inciso b) del CFF, y las reglas 2.7.1.29., fracción II y 2.7.1.32., los contribuyentes que no reciban el pago del monto total del CFDI al momento de su expedición, podrán considerarlo como pagado en una sola exhibición para efectos de la facturación, siempre que:\nI.\tSe haya pactado o se estime que el monto total que ampare el comprobante se recibirá a más tardar el último día del mes de calendario en el cual se expidió el CFDI.\nII.\tSeñalen en el CFDI como método de pago “PUE” (Pago en una sola exhibición) y cuál será la forma en que se recibirá dicho pago.\nIII.\tSe realice efectivamente el pago de la totalidad de la contraprestación a más tardar en el plazo señalado en la fracción I de esta regla.\n\tEn aquellos casos en que el pago se realice en una forma distinta a la que se señaló en el CFDI, el contribuyente cancelará el CFDI emitido por la operación y emitirá uno nuevo señalando como forma de pago la que efectivamente corresponda.\n\tEn el caso de que la totalidad del pago de la operación que ampara el CFDI no se realice a más tardar el último día del mes en que se expidió este comprobante, el contribuyente cancelará el CFDI emitido por la operación y emitirá uno nuevo señalando como forma de pago “99” por definir y como método de pago “PPD” pago en parcialidades o diferido, relacionando el nuevo CFDI con el emitido originalmente como “Sustitución de los CFDI previos”, debiendo adicionalmente emitir por el pago o los pagos que efectivamente le realicen, el CFDI con complemento para recepción de pagos que corresponda de conformidad con las reglas 2.7.1.29. y 2.7.1.32.\n\tTratándose de los integrantes del sector financiero que apliquen la facilidad contenida en esta regla, estos podrán considerar para efectos de lo señalado en la fracción I de la misma, incluso los pagos que reciban a más tardar el día 17 del mes inmediato siguiente a aquel en que se emitió el CFDI por el total de la operación, debiendo, en todo caso el receptor del CFDI realizar el acreditamiento del IVA e IEPS en el mes en que el impuesto trasladado haya sido efectivamente pagado.\n\tCFF 29, 29-A, RMF 2024 2.7.1.29., 2.7.1.32."]
[null,"Requisito de las deducciones persona moral régimen general de Ley\nEstar amparadas con un comprobante fiscal y que los pagos cuyo monto exceda de $2,000.00 se efectúen mediante transferencia electrónica de fondos desde cuentas abiertas a nombre del contribuyente en instituciones que componen el sistema financiero y las entidades que para tal efecto autorice el Banco de México; cheque nominativo de la cuenta del contribuyente, tarjeta de crédito, de débito, de servicios, o los denominados monederos electrónicos autorizados por el Servicio de Administración Tributaria.\n\n\tTratándose de la adquisición de combustibles para vehículos marítimos, aéreos y terrestres, el pago deberá efectuarse en la forma señalada en el párrafo anterior, aun cuando la contraprestación de dichas adquisiciones no excedan de $2,000.00 y en el comprobante fiscal deberá constar la información del permiso vigente, expedido en los términos de la Ley de Hidrocarburos al proveedor del combustible y que, en su caso, dicho permiso no se encuentre suspendido, al momento de la expedición del comprobante fiscal.\nFundamento: Artículo 27 fracción III segundo y tercer párrafo LISR"]
[null,"Requisito de las deducciones persona moral RESICO\nPara los efectos de este artículo, se estará a lo dispuesto en las fracciones aplicables del artículo 27 de esta Ley.\nFundamento: Artículo 210 último párrafo LISR"]
[null,"Requisito de las deducciones persona física actividad empresarial y profesional.\nPara los efectos de esta sección, se estará a lo dispuesto en el artículo 27, fracciones III, IV, V, VI, X, XI, XIII, XIV, XVII, XVIII, XIX y XXI de esta Ley.\nFundamento: Artículo 105 último párrafo LISR"]
[null,"Requisito de las deducciones persona física arrendamiento de inmuebles\nEstar amparada con el comprobante fiscal y que los pagos cuya contraprestación exceda de $2,000.00, se efectúen mediante transferencia electrónicas de fondos desde cuentas abiertas a nombre del contribuyente en instituciones que componen el sistema financiero y las entidades que para tal efecto autorice el Banco de México; cheque nominativo de la cuenta del contribuyente, tarjeta de crédito, débito, de servicios, o a través de los denominados monederos electrónicos autorizados por el Servicio de Administración Tributaria.\n\n\tLos pagos que en los términos de esta fracción deban efectuarse mediante cheque nominativo del contribuyente, también podrán realizarse mediante traspasos de cuentas en instituciones de crédito o casas de bolsa del propio contribuyente.\nFundamento: Artículo 147 fracción IV tercer y cuarto párrafo LISR"]
[null,"Requisitos de deducciones que corresponden a obligaciones que se extingan con la entrega de dinero\n3.3.1.3.\tPara los efectos del artículo 27, fracción III de la Ley del ISR, se considera que el requisito de deducibilidad consistente en que los pagos cuyo monto exceda de $2,000.00 (dos mil pesos 00/100 M.N.), se efectúen mediante cheque nominativo del contribuyente, tarjeta de crédito, de débito o de servicios, o a través de monederos electrónicos autorizados por el SAT, solo es aplicable a las obligaciones que se cumplan o se extingan con la entrega de una cantidad en dinero, por lo que están exceptuados aquellos casos en los cuales el interés del acreedor queda satisfecho mediante cualquier otra forma de extinción de las obligaciones que den lugar a las contraprestaciones.\n\tLISR 27"]
[null,"Requisito de acreditamiento del IVA\nQue el impuesto al valor agregado trasladado al contribuyente haya sido efectivamente pagado en el mes de que se trate\nFundamento: Artículo 5 fracción III LIVA"]
[null,"Condiciones de pago (campo condicional)"]
[null,"Moneda (campo obligatorio)"]
[null,"Tipo de cambio (campo condicional)"]
[null,"Tipo de comprobante"]
[null,"Apéndice 2 Clasificación de los tipos de CFDI \nTipos de comprobantes: \n1. Comprobante de Ingreso. - Se emiten por los ingresos que obtienen los contribuyentes, ejemplo: prestación de servicios, arrendamiento, honorarios, donativos recibidos, enajenación de bienes y mercancías, incluyendo la enajenación que se realiza en operaciones de comercio exterior, etc. \n2. Comprobante de Egreso. - Amparan devoluciones, descuentos y bonificaciones para efectos de deducibilidad y también puede utilizarse para corregir o restar un comprobante de ingresos en cuanto a los montos que documenta, como la aplicación de anticipos. Este comprobante es conocido como nota de crédito. \n3.  Comprobante de Traslado. - Sirve para amparar el transporte, la legal tenencia y estancia de las mercancías objeto del transporte durante su trayecto en territorio nacional. También puede usarse para documentar operaciones de transporte de mercancías al extranjero. \n4. Comprobante de Recepción de pagos. – Es un CFDI que incorpora un Complemento para recepción de Pagos, el cual debe emitirse en los casos de operaciones con pago en parcialidades o cuando al momento de expedir el CFDI no se reciba el pago de la contraprestación y facilita la conciliación de las facturas contra pagos.  \n5. Comprobante de Nómina. - Es un CFDI al que se incorpora el complemento recibo de pago de nómina, el cual debe emitirse por los pagos realizados por concepto de remuneraciones de sueldos, salarios y asimilados a estos, es una especie de una factura de egresos. \n6. Comprobante de Retenciones e información de pagos. - Se expiden en las operaciones en las cuales se informa de la realización de retenciones de impuestos, incluyendo el caso de pagos realizados a residentes en el extranjero para efectos fiscales y las retenciones que se les realicen; este tipo de comprobante no forma parte del Catálogo tipo de comprobante porque éste se genera con el estándar contenido en el rubro II. del Anexo 20. "]
[null,"Exportación"]
[null,"Complemento de CFDI en exportación definitiva de mercancías\n2.7.1.19.\tPara los efectos del artículo 29, párrafos primero y penúltimo del CFF en relación con lo dispuesto en la regla 3.1.38. de las RGCE, al CFDI que se emita con motivo de operaciones de exportación definitiva de mercancías con clave de pedimento “A1” del Apéndice 2 del Anexo 22 de las RGCE, deberá incorporársele el complemento que al efecto se publique en el Portal del SAT.\n\nEn el citado complemento se deberá incluir el identificador fiscal del país de residencia para efectos fiscales del receptor del CFDI y, en su caso, del destinatario de la mercancía, o el identificador específico para cada país, que al efecto determine el SAT en su Portal.\n\tCFF 29, RGCE 3.1.38."]
[null,"Lugar de expedición"]
[null,"Confirmación"]
[]
[null,"Nodo emisor",null,"Nodo a cuenta de terceros"]
[null,"RFC",null,"RFC a cuenta de terceros"]
[null,"Nombre",null,"Nombre a cuenta de terceros"]
[null,"Régimen fiscal",null,"Régimen fiscal a cuenta de terceros"]
[null,"FacAtrAdquirente",null,"Domicilio fiscal a cuenta de terceros"]
[]
[null,"Nodo receptor"]
[null,"RFC"]
[null,"Clave en el RFC genérica en CFDI y con residentes en el extranjero\n2.7.1.23.\tPara los efectos del artículo 29-A, fracción IV, segundo párrafo del CFF y 99, fracción III de la Ley del ISR, cuando no se cuente con la clave en el RFC, se consignará la clave genérica en el RFC: XAXX010101000 y cuando se trate de operaciones efectuadas con residentes en el extranjero, que no se encuentren inscritos en el RFC, se señalará la clave genérica en el RFC: XEXX010101000.\nEn el caso de contribuyentes residentes en México, que presten servicios de subcontratación de servicios especializados o de ejecución de obras especializadas a residentes en el extranjero que no están obligados a solicitar su inscripción en el RFC, en los CFDI de nómina que deben emitir por los pagos que realicen y que a su vez sean ingresos para sus trabajadores en términos del Título IV, Capítulo I de la Ley del ISR, podrán señalar en el campo “RfcLabora” del elemento o sección del complemento de nómina denominado “SubContratacion” la clave en el RFC genérica a que se refiere el párrafo anterior.\nCFF 29-A, LISR 99"]
[null,"Nombre"]
[null,"Domicilio fiscal del receptor"]
[null,"Residencia fiscal"]
[null,"No. de registro tributario"]
[null,"Régimen fiscal"]
[null,"Uso del CFDI"]
[]
[null,"Nodo factura global"]
[null,"Expedición de comprobantes en operaciones con el público en general\n2.7.1.21.\tPara los efectos de los artículos 29 y 29-A, fracción IV, segundo párrafo del CFF, 39 del Reglamento del CFF y 113-G, fracción V, segundo párrafo de la Ley del ISR, los contribuyentes podrán elaborar un CFDI diario, semanal o mensual donde consten los importes correspondientes a cada una de las operaciones realizadas con el público en general del periodo al que corresponda y el número de folio o de operación de los comprobantes de operaciones con el público en general que se hubieran emitido, utilizando para ello la clave genérica en el RFC a que se refiere la regla 2.7.1.23. Los contribuyentes personas físicas que tributen en el RIF de conformidad con lo establecido en el Título IV, Capítulo II, Sección II de la Ley del ISR vigente hasta el 31 de diciembre de 2021, en relación con lo señalado en el artículo Segundo, fracción IX de las Disposiciones Transitorias de la Ley del Impuesto sobre la Renta, publicada en el DOF el 12 de noviembre de 2021, podrán elaborar el CFDI de referencia de forma bimestral, incluyendo únicamente el monto total de las operaciones del periodo correspondiente. Tratándose de los contribuyentes personas físicas que tributen en el Régimen Simplificado de Confianza de conformidad con lo señalado en el Título IV, Capítulo II, Sección IV de la Ley del ISR, en los CFDI que emitan por las operaciones realizadas durante el mes de que se trate, deberán incluir únicamente el monto total de las operaciones del periodo correspondiente, y deberán cumplir con lo establecido en el quinto párrafo de esta regla.\nPor las operaciones a que se refiere el párrafo anterior, se deberán expedir los comprobantes de operaciones con el público en general, mismos que deberán contener los requisitos del artículo 29-A, fracciones I y III del CFF, así como el valor total de los actos o actividades realizados, la cantidad, la clase de los bienes o mercancías o descripción del servicio o del uso o goce que amparen y cuando así proceda, el número de registro de la máquina, equipo o sistema y, en su caso, el logotipo fiscal.\nLos comprobantes de operaciones con el público en general podrán expedirse en alguna de las formas siguientes:\nI.\tComprobantes impresos en original y copia, debiendo contener impreso el número de folio en forma consecutiva previamente a su utilización. La copia se entregará al interesado y los originales se conservarán por el contribuyente que los expide.\nII.\tComprobantes consistentes en copia de la parte de los registros de auditoría de sus máquinas registradoras, en la que aparezca el importe de las operaciones de que se trate y siempre que los registros de auditoría contengan el orden consecutivo de operaciones y el resumen total de las ventas diarias, revisado y firmado por el auditor interno de la empresa o por el contribuyente.\nIII.\tComprobantes emitidos por los equipos de registro de operaciones con el público en general, siempre que cumplan con los requisitos siguientes:\na)\tContar con sistemas de registro contable electrónico que permitan identificar en forma expresa el valor total de las operaciones celebradas cada día con el público en general, así como el monto de los impuestos trasladados en dichas operaciones.\nb)\tQue los equipos para el registro de las operaciones con el público en general cumplan con los siguientes requisitos:\n1.\tContar con un dispositivo que acumule el valor de las operaciones celebradas durante el día, así como el monto de los impuestos trasladados en dichas operaciones.\n2.\tContar con un acceso que permita a las autoridades fiscales consultar la información contenida en el dispositivo mencionado.\n3.\tContar con la capacidad de emitir comprobantes que reúnan los requisitos a que se refiere el inciso a) de la presente fracción.\n4.\tContar con la capacidad de efectuar en forma automática, al final del día, el registro contable en las cuentas y subcuentas afectadas por cada operación, y de emitir un reporte global diario.\nPara los efectos del CFDI donde consten las operaciones realizadas con el público en general, los contribuyentes podrán remitir al SAT o al PCCFDI, según sea el caso, el CFDI a más tardar dentro de las 24 horas siguientes al cierre de las operaciones realizadas de manera diaria, semanal, mensual o bimestral.\nEn los CFDI globales se deberá separar el monto del IVA e IEPS a cargo del contribuyente.\nCuando los adquirentes de los bienes o receptores de los servicios no soliciten comprobantes de operaciones realizadas con el público en general, los contribuyentes no estarán obligados a expedirlos por operaciones celebradas con el público en general, cuyo importe sea inferior a $100.00 (cien pesos 00/100 M.N.).\nEn operaciones con el público en general pactadas en pagos parciales o diferidos, los contribuyentes podrán emitir un comprobante en los términos de esta regla exclusivamente para reflejar dichas operaciones. En dicho caso, los contribuyentes que acumulen ingresos conforme a lo devengado reflejarán el monto total de la operación en la factura global que corresponda; tratándose de contribuyentes que tributan conforme a flujo de efectivo, deberán reflejar solamente los montos efectivamente recibidos por la operación en cada una de las facturas globales que se emitan. A las operaciones descritas en el presente párrafo no les será aplicable lo señalado en la regla 2.7.1.32.\nLa facilidad establecida en esta regla no es aplicable tratándose de los sujetos señalados en la regla 2.6.1.2. Tratándose de las estaciones de servicio, por las operaciones que se realicen a través de monederos electrónicos autorizados por el SAT, deberán estar a lo señalado en la regla 3.3.1.7., penúltimo párrafo.\nCFF 29, 29-A, LISR 2021 112, LISR 2022 113-G, RCFF 39, RMF 2.6.1.2., 2.7.1.23., 2.7.1.32., 3.3.1.7."]
[null,"Periodicidad"]
[null,"Meses"]
[null,"Años"]
[]
[null,"Nodo CFDI relacionados"]
[null,"Tipo de relación"]
[null,"UUID"]
[]
[null,"Nodo conceptos"]
[null,"Clave producto/ servicio"]
[null,"No. de identificación"]
[null,"Cantidad"]
[null,"Clave de unidad"]
[null,"Unidad"]
[null,"Descripción"]
[null,"Valor unitario"]
[null,"Artículo 58-A CFF. Las autoridades fiscales podrán modificar la utilidad o la pérdida fiscal a que se refiere la Ley del Impuesto sobre la Renta, mediante la determinación presuntiva del precio en que los contribuyentes adquieran o enajenen bienes, así como el monto de la contraprestación en el caso de operaciones distintas de enajenación, cuando:\n\nII. \tLa enajenación de los bienes se realice al costo o a menos del costo, salvo que el contribuyente compruebe que la enajenación se hizo al precio de mercado en la fecha de la operación, o que los bienes sufrieron demérito o existieron circunstancias que determinaron la necesidad de efectuar la enajenación en estas condiciones."]
[null,"Importe"]
[null,"Descuento"]
[null,"Persona moral régimen general de Ley\nArtículo 25 LISR. Los contribuyentes podrán efectuar las deducciones siguientes:\n\nI.\tLas devoluciones que se reciban o los descuentos o bonificaciones que se hagan en el ejercicio."]
[null,"Objeto de impuesto"]
[null,"Pedimento"]
[null,"Número"]
[]
[null,"Noto impuestos"]
[null,"Trasladado"]
[null,"Base"]
[null,"Impuesto"]
[null,"Tipo factor"]
[null,"Tasa o cuota"]
[null,"Importe"]
[]
[null,"Retenido"]
[null,"Base"]
[null,"Impuesto"]
[null,"Tipo factor"]
[null,"Tasa o cuota"]
[null,"Importe"]
[]
[null,"Las cantidades que estén amparadas en los comprobantes fiscales que no reúnan algún requisito de los establecidos en esta disposición o en el artículo 29 de este Código, según sea el caso, o cuando los datos contenidos en los mismos se plasmen en forma distinta a lo señalado por las disposiciones fiscales, no podrán deducirse o acreditarse fiscalmente.\nFundamento: Artículo 29-A tercer párrafo CFF"]

{"sheet":"CFDIE","index":3,"n_rows":7,"n_cols":35,"rows_kept":7,"cut":false,"hidden":true,"merged":[[5,17,5,18],[5,19,5,21],[5,23,5,24],[5,8,5,11],[5,5,5,7]]}
[]
[]
[]
[]
[]
[null,null,null,null,null,"Emisor",null,null,"Receptor",null,null,null,null,null,null,null,null,"Trasladados",null,"Retenciones",null,null,null,"Aerolíneas"]
[null,"Fecha ","Tipo de comprobante","Serie y folio","Folio fiscal","RFC","NOMBRE","Régimen fiscal","RFC","Nombre ","Régimen fiscal","USO","Descripción","Objeto de impuesto","Importe","Descuento","Importe - descuento","IEPS","IVA","ISR","IVA","IEPS","Impuesto sobre hospedaje","TUA","Otros cargos","Total del comprobante","Método de pago","Forma de pago","Moneda","Tipo de cambio","Importe sin convertir","Fecha de cancelación","Tipo de relación","UUID relacionado","Ruta"]

{"sheet":"RPAGOSE","index":4,"n_rows":7,"n_cols":69,"rows_kept":7,"cut":false,"hidden":true,"merged":[[5,49,5,56],[5,57,5,64],[4,21,4,47],[5,9,5,11],[5,12,5,14],[5,15,5,20],[5,32,5,35],[5,36,5,45],[5,46,5,47]]}
[null,null,null,null,null,null,null,null,null,null,null,null,null,null,null,null,null,null,null,null,null,null,null,null,null,null,null,null,null,null,null,null,null,null,null,null,null,null,null,null,null,null,null,null,null,null,null,null,null,null,null,null,null,null,null,null,null,null,null,null,null,null,null,null,null,""]
[null,"Hoja para importar los XML emitidos con el complemento de recepción de pagos",null,null,null,null,null,null,null,null,null,null,null,null,null,null,null,null,null,null,null,null,null,null,null,null,null,null,null,null,null,null,null,null,null,null,null,null,null,null,null,null,null,null,null,null,null,null,null,null,null,null,null,null,null,null,null,null,null,null,null,null,null,null,null,""]
[null,null,null,null,null,null,null,null,null,null,null,null,null,null,null,null,null,null,null,null,null,null,null,null,null,null,null,null,null,null,null,null,null,null,null,null,null,null,null,null,null,null,null,null,null,null,null,null,null,null,null,null,null,null,null,null,null,null,null,null,null,null,null,null,null,""]
[null,null,null,null,null,null,null,null,null,null,null,null,null,null,null,null,null,null,null,null,null,null,null,null,null,null,null,null,null,null,null,null,null,null,null,null,null,null,null,null,null,null,null,null,null,null,null,null,null,null,null,null,null,null,null,null,null,null,null,null,null,null,null,null,null,""]
[null,null,null,null,null,null,null,null,null,null,null,null,null,null,null,null,null,null,null,null,null,"Complemento de recepción de pagos",null,null,null,null,null,null,null,null,null,null,null,null,null,null,null,null,null,null,null,null,null,null,null,null,null,null,null,null,null,null,null,null,null,null,null,null,null,null,null,null,null,null,null,""]
[null,null,null,null,null,null,null,null,null,"Emisor",null,null,"Receptor",null,null,"Campos generales CFDI ",null,null,null,null,null,null,null,null,null,null,null,null,null,null,null,null,"Solo que el pago se reciba en SPEI",null,null,null,"Documentos que se cobran",null,null,null,null,null,null,null,null,null,"Timbre fiscal del complemento de recepción de pagos",null,null,"Impuestos trasladados",null,null,null,null,null,null,null,"Impuestos retenidos",null,null,null,null,null,null,null,""]
[null,"Fecha de emisión","Folio","Serie","Subtotal","Moneda","Total","Tipo de comprobante","Lugar Expedicion","Rfc","Nombre","Régimen fiscal","RFC receptor","Nombre","Régimen fiscal","ClaveProdServ","Cantidad","Unidad","Descripcion","ValorUnitario","Importe","Fecha de pago","Forma de pago","MonedaP","TipoCambioP","Monto","NumOperacion","RfcEmisorCtaOrd ","NomBancoOrdExt ","CtaOrdenante","RfcEmisorCtaBen ","CtaBeneficiario","TipoCadPago ","CertPago","CadPago","SelloPago","IdDocumento ","Serie","Folio","MonedaDR ","TipoCambioDR","MetodoDePagoDR","NumParcialidad ","ImpSaldoAnt ","ImpPagado ","ImpSaldoInsoluto","Fecha de timbrado","UUID","Objeto de impuestos DR","Base para IEPS","Tipo factor","Tasa o cuota","Total IEPS trasladado del comprobante","Base para IVA","Tipo  factor","Tasa o cuota","Total IVA trasladado del comprobante","Base retención ISR","Tipo factor","Tasa o cuota","Retención de ISR","Base retención IVA","Tipo factor","Tasa o cuota","Retención IVA","USO del CFDI","Base de ISR","Ruta del archivo","Fecha de cancelación"]

{"sheet":"METADATA","index":5,"n_rows":0,"n_cols":0,"rows_kept":0,"cut":false,"hidden":true,"merged":[]}

{"sheet":"CFDIR","index":6,"n_rows":7,"n_cols":35,"rows_kept":7,"cut":false,"hidden":true,"merged":[[5,5,5,6],[5,17,5,18],[5,19,5,21],[5,23,5,24]]}
[]
[]
[]
[]
[]
[null,null,null,null,null,"Emisor",null,null,"Receptor",null,null,null,null,null,null,null,null,"Trasladados",null,"Retenciones",null,null,null,"Aerolíneas"]
[null,"Fecha ","Tipo de comprobante","Serie y folio","Folio fiscal","RFC","NOMBRE","Régimen fiscal","RFC","Nombre ","Régimen fiscal","USO","Descripción","Objeto de impuesto","Importe","Descuento","Importe - descuento","IEPS","IVA","ISR","IVA","IEPS","Impuesto sobre hospedaje","TUA","Otros cargos","Total del comprobante","Método de pago","Forma de pago","Moneda","Tipo de cambio","Importe sin convertir","Fecha de cancelación","Tipo de relación","UUID relacionado","Ruta"]

{"sheet":"RPAGOSR","index":7,"n_rows":7,"n_cols":69,"rows_kept":7,"cut":false,"hidden":true,"merged":[[5,49,5,56],[5,57,5,64],[4,21,4,47],[5,9,5,11],[5,12,5,14],[5,15,5,20],[5,32,5,35],[5,36,5,45],[5,46,5,47]]}
[null,null,null,null,null,null,null,null,null,null,null,null,null,null,null,null,null,null,null,null,null,null,null,null,null,null,null,null,null,null,null,null,null,null,null,null,null,null,null,null,null,null,null,null,null,null,null,null,null,null,null,null,null,null,null,null,null,null,null,null,null,null,null,null,null,""]
[null,"Hoja para importar los XML emitidos con el complemento de recepción de pagos",null,null,null,null,null,null,null,null,null,null,null,null,null,null,null,null,null,null,null,null,null,null,null,null,null,null,null,null,null,null,null,null,null,null,null,null,null,null,null,null,null,null,null,null,null,null,null,null,null,null,null,null,null,null,null,null,null,null,null,null,null,null,null,""]
[null,null,null,null,null,null,null,null,null,null,null,null,null,null,null,null,null,null,null,null,null,null,null,null,null,null,null,null,null,null,null,null,null,null,null,null,null,null,null,null,null,null,null,null,null,null,null,null,null,null,null,null,null,null,null,null,null,null,null,null,null,null,null,null,null,""]
[null,null,null,null,null,null,null,null,null,null,null,null,null,null,null,null,null,null,null,null,null,null,null,null,null,null,null,null,null,null,null,null,null,null,null,null,null,null,null,null,null,null,null,null,null,null,null,null,null,null,null,null,null,null,null,null,null,null,null,null,null,null,null,null,null,""]
[null,null,null,null,null,null,null,null,null,null,null,null,null,null,null,null,null,null,null,null,null,"Complemento de recepción de pagos",null,null,null,null,null,null,null,null,null,null,null,null,null,null,null,null,null,null,null,null,null,null,null,null,null,null,null,null,null,null,null,null,null,null,null,null,null,null,null,null,null,null,null,""]
[null,null,null,null,null,null,null,null,null,"Emisor",null,null,"Receptor",null,null,"Campos generales CFDI ",null,null,null,null,null,null,null,null,null,null,null,null,null,null,null,null,"Solo que el pago se reciba en SPEI",null,null,null,"Documentos que se cobran",null,null,null,null,null,null,null,null,null,"Timbre fiscal del complemento de recepción de pagos",null,null,"Impuestos trasladados",null,null,null,null,null,null,null,"Impuestos retenidos",null,null,null,null,null,null,null,""]
[null,"Fecha de emisión","Folio","Serie","Subtotal","Moneda","Total","Tipo de comprobante","Lugar Expedicion","Rfc","Nombre","Régimen fiscal","RFC receptor","Nombre","Régimen fiscal","ClaveProdServ","Cantidad","Unidad","Descripcion","ValorUnitario","Importe","Fecha de pago","Forma de pago","MonedaP","TipoCambioP","Monto","NumOperacion","RfcEmisorCtaOrd ","NomBancoOrdExt ","CtaOrdenante","RfcEmisorCtaBen ","CtaBeneficiario","TipoCadPago ","CertPago","CadPago","SelloPago","IdDocumento ","Serie","Folio","MonedaDR ","TipoCambioDR","MetodoDePagoDR","NumParcialidad ","ImpSaldoAnt ","ImpPagado ","ImpSaldoInsoluto","Fecha de timbrado","UUID","Objeto de impuestos DR","Base para IEPS","Tipo factor","Tasa o cuota","Total IEPS trasladado del comprobante","Base para IVA","Tipo  factor","Tasa o cuota","Total IVA trasladado del comprobante","Base retención ISR","Tipo factor","Tasa o cuota","Retención de ISR","Base retención IVA","Tipo factor","Tasa o cuota","Retención IVA","USO del CFDI","Base de ISR","Ruta del archivo","Fecha de cancelación"]

{"sheet":"METADATAR","index":8,"n_rows":0,"n_cols":0,"rows_kept":0,"cut":false,"hidden":true,"merged":[]}

{"sheet":"VISOR","index":9,"n_rows":38,"n_cols":23,"rows_kept":38,"cut":false,"hidden":true,"merged":[[12,21,13,21],[12,22,13,22],[11,9,11,10],[12,4,12,5],[12,6,13,6],[12,7,13,7],[12,8,13,8],[12,9,13,9],[12,10,13,10]]}
[]
[]
[]
[null,"Fecha inicial"]
[null,"Fecha final"]
[null,"Tipo de CFDI"]
[null,"Tipo de comprobante",null,null,null,null,null,null,"IR AL MENÚ"]
[null,{"$f":"IFERROR(IF(OR(C7=\"I = Ingreso\",C7=\"E = Egreso\"),\"¿Con método de pago?\",\"\"),\"\")","v":""}]
[null,{"$f":"IF(C7<>\"\",\"¿Clave de uso?\",\"\")","v":""}]
[]
[null,{"$f":"IFERROR(\"Concentrado de CFDI emitidos de tipo \"&MID($C$7,5,LEN($C$7)-4)&\" con método de pago \"&C8& \" y clave de uso \"&C9,\"\")","v":""}]
[null,null,null,null,null,null,null,null,null,"Impuestos retenidos"]
[null,null,null,null,"Número de facturas",null,"Subtotal","Descuento","Subtotal - Descuento","ISR","IVA",null,null,null,null,null,null,null,null,null,null,"Impuestos locales","Total del comprobante"]
[null,"c_FormaPago","Descripción","Bancarizado","Canceladas","Vigentes"]
[null,1,"Efectivo","No"]
[null,2,"Cheque nominativo","Sí"]
[null,3,"Transferencia electrónica de fondos","Sí"]
[null,4,"Tarjeta de crédito","Sí"]
[null,5,"Monedero electrónico","Sí"]
[null,6,"Dinero electrónico","Sí"]
[null,8,"Vales de despensa","No"]
[null,12,"Dación en pago","No"]
[null,13,"Pago por subrogación","No"]
[null,14,"Pago por consignación","No"]
[null,15,"Condonación","No"]
[null,17,"Compensación","No"]
[null,23,"Novación","No"]
[null,24,"Confusión","No"]
[null,25,"Remisión de deuda","No"]
[null,26,"Prescripción o caducidad","No"]
[null,27,"A satisfacción del acreedor","No"]
[null,28,"Tarjeta de débito","Sí"]
[null,29,"Tarjeta de servicios","Sí"]
[null,30,"Aplicación de anticipos","No"]
[null,31,"Intermediario pagos","No"]
[null,99,"Por definir","Opcional"]
[]
[null,null,null,"Totales"]

{"sheet":"CATALOGO","index":10,"n_rows":335,"n_cols":11,"rows_kept":335,"cut":false,"hidden":true,"merged":[]}
[]
[]
[]
[null,"c_RiesgoPuesto","Descripción","Fecha inicio de vigencia","Fecha fin de vigencia",null,null,"c_TipoPercepcion","Descripción","Fecha inicio de vigencia","Fecha fin de vigencia"]
[null,1,"Clase I","2017-01-01",null,null,null,1,"Sueldos, Salarios  Rayas y Jornales","2016-11-01"]
[null,2,"Clase II","2017-01-01",null,null,null,2,"Gratificación Anual (Aguinaldo)","2016-11-01"]
[null,3,"Clase III","2017-01-01",null,null,null,3,"Participación de los Trabajadores en las Utilidades PTU","2016-11-01"]
[null,4,"Clase IV","2017-01-01",null,null,null,4,"Reembolso de Gastos Médicos Dentales y Hospitalarios","2016-11-01"]
[null,5,"Clase V","2017-01-01",null,null,null,5,"Fondo de Ahorro","2016-11-01"]
[null,99,"No aplica","2017-08-13",null,null,null,6,"Caja de ahorro","2016-11-01"]
[null,null,null,null,null,null,null,9,"Contribuciones a Cargo del Trabajador Pagadas por el Patrón","2016-11-01"]
[null,null,null,null,null,null,null,10,"Premios por puntualidad","2016-11-01"]
[null,"c_TipoRegimen","Descripción","Fecha inicio de vigencia","Fecha fin de vigencia",null,null,11,"Prima de Seguro de vida","2016-11-01"]
[null,2,"Sueldos (Incluye ingresos señalados en la fracción I del artículo 94 de LISR)","2017-01-01",null,null,null,12,"Seguro de Gastos Médicos Mayores","2016-11-01"]
[null,3,"Jubilados","2017-01-01",null,null,null,13,"Cuotas Sindicales Pagadas por el Patrón","2016-11-01"]
[null,4,"Pensionados","2017-01-01",null,null,null,14,"Subsidios por incapacidad","2016-11-01"]
[null,5,"Asimilados Miembros Sociedades Cooperativas Produccion","2017-01-01",null,null,null,15,"Becas para trabajadores y/o hijos","2016-11-01"]
[null,6,"Asimilados Integrantes Sociedades Asociaciones Civiles","2017-01-01",null,null,null,19,"Horas extra","2016-11-01"]
[null,7,"Asimilados Miembros consejos","2017-01-01",null,null,null,20,"Prima dominical","2016-11-01"]
[null,8,"Asimilados comisionistas","2017-01-01",null,null,null,21,"Prima vacacional","2016-11-01"]
[null,9,"Asimilados Honorarios","2017-01-01",null,null,null,22,"Prima por antigüedad","2016-11-01"]
[null,10,"Asimilados acciones","2017-01-01",null,null,null,23,"Pagos por separación","2016-11-01"]
[null,11,"Asimilados otros","2017-01-01",null,null,null,24,"Seguro de retiro","2016-11-01"]
[null,12,"Jubilados o Pensionados","2017-03-27",null,null,null,25,"Indemnizaciones","2016-11-01"]
[null,13,"Indemnización o Separación","2018-10-15",null,null,null,26,"Reembolso por funeral","2016-11-01"]
[null,99,"Otro Regimen","2017-01-01",null,null,null,27,"Cuotas de seguridad social pagadas por el patrón","2016-11-01"]
[null,null,null,null,null,null,null,28,"Comisiones","2016-11-01"]
[null,null,null,null,null,null,null,29,"Vales de despensa","2016-11-01"]
[null,"c_TipoContrato","Descripción",null,null,null,null,30,"Vales de restaurante","2016-11-01"]
[null,1,"Contrato de trabajo por tiempo indeterminado",null,null,null,null,31,"Vales de gasolina","2016-11-01"]
[null,2,"Contrato de trabajo para obra determinada",null,null,null,null,32,"Vales de ropa","2016-11-01"]
[null,3,"Contrato de trabajo por tiempo determinado",null,null,null,null,33,"Ayuda para renta","2016-11-01"]
[null,4,"Contrato de trabajo por temporada",null,null,null,null,34,"Ayuda para artículos escolares","2016-11-01"]
[null,5,"Contrato de trabajo sujeto a prueba",null,null,null,null,35,"Ayuda para anteojos","2016-11-01"]
[null,6,"Contrato de trabajo con capacitación inicial",null,null,null,null,36,"Ayuda para transporte","2016-11-01"]
[null,7,"Modalidad de contratación por pago de hora laborada",null,null,null,null,37,"Ayuda para gastos de funeral","2016-11-01"]
[null,8,"Modalidad de trabajo por comisión laboral",null,null,null,null,38,"Otros ingresos por salarios","2016-11-01"]
[null,9,"Modalidades de contratación donde no existe relación de trabajo",null,null,null,null,39,"Jubilaciones, pensiones o haberes de retiro","2016-11-01"]
[null,10,"Jubilación, pensión, retiro.",null,null,null,null,44,"Jubilaciones, pensiones o haberes de retiro en parcialidades","2016-11-01"]
[null,99,"Otro contrato",null,null,null,null,45,"Ingresos en acciones o títulos valor que representan bienes","2016-11-01"]
[null,null,null,null,null,null,null," 046","Ingresos asimilados a salarios","2016-11-01"]
[null,null,null,null,null,null,null," 047","Alimentación","2016-11-01"]
[null,"c_PeriodicidadPago","Descripción","Fecha inicio de vigencia","Fecha fin de vigencia",null,null,48,"Habitación","2016-11-01"]
[null,1,"Diario","2016-11-01",null,null,null,49,"Premios por asistencia","2016-11-01"]
[null,2,"Semanal","2016-11-01",null,null,null,50,"Viáticos","2017-01-06"]
[null,3,"Catorcenal","2016-11-01",null,null,null,51,"Pagos por gratificaciones, primas, compensaciones, recompensas u otros a extrabajadores derivados de jubilación en parcialidades","2018-10-15"]
[null,4,"Quincenal","2016-11-01",null,null,null,52,"Pagos que se realicen a extrabajadores que obtengan una jubilación en parcialidades derivados de la ejecución de resoluciones judicial o de un laudo","2018-10-15"]
[null,5,"Mensual","2016-11-01",null,null,null,53,"Pagos que se realicen a extrabajadores que obtengan una jubilación en una sola exhibición derivados de la ejecución de resoluciones judicial o de un laudo","2018-10-15"]
[null,6,"Bimestral","2016-11-01"]
[null,7,"Unidad obra","2016-11-01"]
[null,8,"Comisión","2016-11-01",null,null,null," c_TipoOtroPago","Descripción","Fecha inicio de vigencia","Fecha fin de vigencia"]
[null,9,"Precio alzado","2016-11-01",null,null,null,1,"Reintegro de ISR pagado en exceso (siempre que no haya sido enterado al SAT).","2017-01-01"]
[null,10,"Decenal","2017-01-19",null,null,null,2,"Subsidio para el empleo (efectivamente entregado al trabajador).","2017-01-01"]
[null,99,"Otra Periodicidad","2016-11-01",null,null,null,3,"Viáticos (entregados al trabajador).","2017-01-01"]
[null,null,null,null,null,null,null,4,"Aplicación de saldo a favor por compensación anual.","2017-01-01"]
[null,null,null,null,null,null,null,5,"Reintegro de ISR retenido en exceso de ejercicio anterior (siempre que no haya sido enterado al SAT).","2017-12-05"]
[null,"c_TipoIncapacidad","Descripción",null,null,null,null,999,"Pagos distintos a los listados y que no deben considerarse como ingreso por sueldos, salarios o ingresos asimilados.","2017-01-01"]
[null,1,"Riesgo de trabajo."]
[null,2,"Enfermedad en general."]
[null,3,"Maternidad.",null,null,null,null,"c_TipoDeduccion","Descripción","Fecha inicio de vigencia","Fecha fin de vigencia"]
[null,null,null,null,null,null,null,1,"Seguridad social","2016-11-01"]
[null,null,null,null,null,null,null,2,"ISR","2016-11-01"]
[null,"c_TipoJornada","Descripción",null,null,null,null,3,"Aportaciones a retiro, cesantía en edad avanzada y vejez.","2016-11-01"]
[null,1,"Diurna",null,null,null,null,4,"Otros","2016-11-01"]
[null,2,"Nocturna",null,null,null,null,5,"Aportaciones a Fondo de vivienda","2016-11-01"]
[null,3,"Mixta",null,null,null,null,6,"Descuento por incapacidad","2016-11-01"]
[null,4,"Por hora",null,null,null,null,7,"Pensión alimenticia","2016-11-01"]
[null,5,"Reducida",null,null,null,null,8,"Renta","2016-11-01"]
[null,6,"Continuada",null,null,null,null,9,"Préstamos provenientes del Fondo Nacional de la Vivienda para los Trabajadores","2016-11-01"]
[null,7,"Partida",null,null,null,null,10,"Pago por crédito de vivienda","2016-11-01"]
[null,8,"Por turnos",null,null,null,null,11,"Pago de abonos INFONACOT","2016-11-01"]
[null,99,"Otra Jornada",null,null,null,null,12,"Anticipo de salarios","2016-11-01"]
[null,null,null,null,null,null,null,13,"Pagos hechos con exceso al trabajador","2016-11-01"]
[null,null,null,null,null,null,null,14,"Errores","2016-11-01"]
[null,"c_Estado","c_Pais","Nombre del estado",null,null,null,15,"Pérdidas","2016-11-01"]
[null,"AGU","MEX","Aguascalientes",null,null,null,16,"Averías","2016-11-01"]
[null,"BCN","MEX","Baja California",null,null,null,17,"Adquisición de artículos producidos por la empresa o establecimiento","2016-11-01"]
[null,"BCS","MEX","Baja California Sur",null,null,null,18,"Cuotas para la constitución y fomento de sociedades cooperativas y de cajas de ahorro","2016-11-01"]
[null,"CAM","MEX","Campeche",null,null,null,19,"Cuotas sindicales","2016-11-01"]
[null,"CHP","MEX","Chiapas",null,null,null,20,"Ausencia (Ausentismo)","2016-11-01"]
[null,"CHH","MEX","Chihuahua",null,null,null,21,"Cuotas obrero patronales","2016-11-01"]
[null,"COA","MEX","Coahuila",null,null,null,22,"Impuestos Locales","2016-11-01"]
[null,"COL","MEX","Colima",null,null,null,23,"Aportaciones voluntarias","2016-11-01"]
[null,"DIF","MEX","Ciudad de México",null,null,null,24,"Ajuste en Gratificación Anual (Aguinaldo) Exento","2017-01-06"]
[null,"DUR","MEX","Durango",null,null,null,25,"Ajuste en Gratificación Anual (Aguinaldo) Gravado","2017-01-06"]
[null,"GUA","MEX","Guanajuato",null,null,null,26,"Ajuste en Participación de los Trabajadores en las Utilidades PTU Exento","2017-01-06"]
[null,"GRO","MEX","Guerrero",null,null,null,27,"Ajuste en Participación de los Trabajadores en las Utilidades PTU Gravado","2017-01-06"]
[null,"HID","MEX","Hidalgo",null,null,null,28,"Ajuste en Reembolso de Gastos Médicos Dentales y Hospitalarios Exento","2017-01-06"]
[null,"JAL","MEX","Jalisco",null,null,null,29,"Ajuste en Fondo de ahorro Exento","2017-01-06"]
[null,"MEX","MEX","Estado de México",null,null,null,30,"Ajuste en Caja de ahorro Exento","2017-01-06"]
[null,"MIC","MEX","Michoacán",null,null,null,31,"Ajuste en Contribuciones a Cargo del Trabajador Pagadas por el Patrón Exento","2017-01-06"]
[null,"MOR","MEX","Morelos",null,null,null,32,"Ajuste en Premios por puntualidad Gravado","2017-01-06"]
[null,"NAY","MEX","Nayarit",null,null,null,33,"Ajuste en Prima de Seguro de vida Exento","2017-01-06"]
[null,"NLE","MEX","Nuevo León",null,null,null,34,"Ajuste en Seguro de Gastos Médicos Mayores Exento","2017-01-06"]
[null,"OAX","MEX","Oaxaca",null,null,null,35,"Ajuste en Cuotas Sindicales Pagadas por el Patrón Exento","2017-01-06"]
[null,"PUE","MEX","Puebla",null,null,null,36,"Ajuste en Subsidios por incapacidad Exento","2017-01-06"]
[null,"QUE","MEX","Querétaro",null,null,null,37,"Ajuste en Becas para trabajadores y/o hijos Exento","2017-01-06"]
[null,"ROO","MEX","Quintana Roo",null,null,null,38,"Ajuste en Horas extra Exento","2017-01-06"]
[null,"SLP","MEX","San Luis Potosí",null,null,null,39,"Ajuste en Horas extra Gravado","2017-01-06"]
[null,"SIN","MEX","Sinaloa",null,null,null,40,"Ajuste en Prima dominical Exento","2017-01-06"]
[null,"SON","MEX","Sonora",null,null,null,41,"Ajuste en Prima dominical Gravado","2017-01-06"]
[null,"TAB","MEX","Tabasco",null,null,null,42,"Ajuste en Prima vacacional Exento","2017-01-06"]
[null,"TAM","MEX","Tamaulipas",null,null,null,43,"Ajuste en Prima vacacional Gravado","2017-01-06"]
[null,"TLA","MEX","Tlaxcala",null,null,null,44,"Ajuste en Prima por antigüedad Exento","2017-01-06"]
[null,"VER","MEX","Veracruz",null,null,null,45,"Ajuste en Prima por antigüedad Gravado","2017-01-06"]
[null,"YUC","MEX","Yucatán",null,null,null,46,"Ajuste en Pagos por separación Exento","2017-01-06"]
[null,"ZAC","MEX","Zacatecas",null,null,null,47,"Ajuste en Pagos por separación Gravado","2017-01-06"]
[null,"AL","USA","Alabama",null,null,null,48,"Ajuste en Seguro de retiro Exento","2017-01-06"]
[null,"AK","USA","Alaska",null,null,null,49,"Ajuste en Indemnizaciones Exento","2017-01-06"]
[null,"AZ","USA","Arizona",null,null,null,50,"Ajuste en Indemnizaciones Gravado","2017-01-06"]
[null,"AR","USA","Arkansas",null,null,null,51,"Ajuste en Reembolso por funeral Exento","2017-01-06"]
[null,"CA","USA","California",null,null,null,52,"Ajuste en Cuotas de seguridad social pagadas por el patrón Exento","2017-01-06"]
[null,"NC","USA","Carolina del Norte",null,null,null,53,"Ajuste en Comisiones Gravado","2017-01-06"]
[null,"SC","USA","Carolina del Sur",null,null,null,54,"Ajuste en Vales de despensa Exento","2017-01-06"]
[null,"CO","USA","Colorado",null,null,null,55,"Ajuste en Vales de restaurante Exento","2017-01-06"]
[null,"CT","USA","Connecticut",null,null,null,56,"Ajuste en Vales de gasolina Exento","2017-01-06"]
[null,"ND","USA","Dakota del Norte",null,null,null,57,"Ajuste en Vales de ropa Exento","2017-01-06"]
[null,"SD","USA","Dakota del Sur",null,null,null,58,"Ajuste en Ayuda para renta Exento","2017-01-06"]
[null,"DE","USA","Delaware",null,null,null,59,"Ajuste en Ayuda para artículos escolares Exento","2017-01-06"]
[null,"FL","USA","Florida",null,null,null,60,"Ajuste en Ayuda para anteojos Exento","2017-01-06"]
[null,"GA","USA","Georgia",null,null,null,61,"Ajuste en Ayuda para transporte Exento","2017-01-06"]
[null,"HI","USA","Hawái",null,null,null,62,"Ajuste en Ayuda para gastos de funeral Exento","2017-01-06"]
[null,"ID","USA","Idaho",null,null,null,63,"Ajuste en Otros ingresos por salarios Exento","2017-01-06"]
[null,"IL","USA","Illinois",null,null,null,64,"Ajuste en Otros ingresos por salarios Gravado","2017-01-06"]
[null,"IN","USA","Indiana",null,null,null,65,"Ajuste en Jubilaciones, pensiones o haberes de retiro en una sola exhibición Exento ","2018-10-15"]
[null,"IA","USA","Iowa",null,null,null,66,"Ajuste en Jubilaciones, pensiones o haberes de retiro en una sola exhibición Gravado","2018-10-15"]
[null,"KS","USA","Kansas",null,null,null,67,"Ajuste en Pagos por separación Acumulable","2017-01-06"]
[null,"KY","USA","Kentucky",null,null,null,68,"Ajuste en Pagos por separación No acumulable","2017-01-06"]
[null,"LA","USA","Luisiana",null,null,null,69,"Ajuste en Jubilaciones, pensiones o haberes de retiro en parcialidades Exento","2018-10-15"]
[null,"ME","USA","Maine",null,null,null,70,"Ajuste en Jubilaciones, pensiones o haberes de retiro en parcialidades Gravado","2018-10-15"]
[null,"MD","USA","Maryland",null,null,null,71,"Ajuste en Subsidio para el empleo (efectivamente entregado al trabajador)","2017-01-06"]
[null,"MA","USA","Massachusetts",null,null,null,72,"Ajuste en Ingresos en acciones o títulos valor que representan bienes Exento","2017-01-06","2018-10-14"]
[null,"MI","USA","Míchigan",null,null,null,73,"Ajuste en Ingresos en acciones o títulos valor que representan bienes Gravado","2017-01-06"]
[null,"MN","USA","Minnesota",null,null,null,74,"Ajuste en Alimentación Exento","2017-01-06"]
[null,"MS","USA","Misisipi",null,null,null,75,"Ajuste en Alimentación Gravado","2017-01-06"]
[null,"MO","USA","Misuri",null,null,null,76,"Ajuste en Habitación Exento","2017-01-06"]
[null,"MT","USA","Montana",null,null,null,77,"Ajuste en Habitación Gravado","2017-01-06"]
[null,"NE","USA","Nebraska",null,null,null,78,"Ajuste en Premios por asistencia","2017-01-06"]
[null,"NV","USA","Nevada",null,null,null,79,"Ajuste en Pagos distintos a los listados y que no deben considerarse como ingreso por sueldos, salarios o ingresos asimilados.","2017-01-06"]
[null,"NJ","USA","Nueva Jersey",null,null,null,80,"Ajuste en Viáticos gravados","2017-01-06"]
[null,"NY","USA","Nueva York",null,null,null,81,"Ajuste en Viáticos (entregados al trabajador)","2017-01-06"]
[null,"NH","USA","Nuevo Hampshire",null,null,null,"082","Ajuste en Fondo de ahorro Gravado","2017-01-06"]
[null,"NM","USA","Nuevo México",null,null,null,"083","Ajuste en Caja de ahorro Gravado","2017-01-06"]
[null,"OH","USA","Ohio",null,null,null,"084","Ajuste en Prima de Seguro de vida Gravado","2017-01-06"]
[null,"OK","USA","Oklahoma",null,null,null,"085","Ajuste en Seguro de Gastos Médicos Mayores Gravado","2017-01-06"]
[null,"OR","USA","Oregón",null,null,null,"086","Ajuste en Subsidios por incapacidad Gravado","2017-01-06"]
[null,"PA","USA","Pensilvania",null,null,null,"087","Ajuste en Becas para trabajadores y/o hijos Gravado","2017-01-06"]
[null,"RI","USA","Rhode Island",null,null,null,"088","Ajuste en Seguro de retiro Gravado","2017-01-06"]
[null,"TN","USA","Tennessee",null,null,null,"089","Ajuste en Vales de despensa Gravado","2017-01-06"]
[null,"TX","USA","Texas",null,null,null,"090","Ajuste en Vales de restaurante Gravado","2017-01-06"]
[null,"UT","USA","Utah",null,null,null,"091","Ajuste en Vales de gasolina Gravado","2017-01-06"]
[null,"VT","USA","Vermont",null,null,null,"092","Ajuste en Vales de ropa Gravado","2017-01-06"]
[null,"VA","USA","Virginia",null,null,null,"093","Ajuste en Ayuda para renta Gravado","2017-01-06"]
[null,"WV","USA","Virginia Occidental",null,null,null,"094","Ajuste en Ayuda para artículos escolares Gravado","2017-01-06"]
[null,"WA","USA","Washington",null,null,null,"095","Ajuste en Ayuda para anteojos Gravado","2017-01-06"]
[null,"WI","USA","Wisconsin",null,null,null,"096","Ajuste en Ayuda para transporte Gravado","2017-01-06"]
[null,"WY","USA","Wyoming",null,null,null,"097","Ajuste en Ayuda para gastos de funeral Gravado","2017-01-06"]
[null,"ON","CAN","Ontario ",null,null,null,"098","Ajuste a ingresos asimilados a salarios gravados","2017-01-06"]
[null,"QC","CAN"," Quebec ",null,null,null,"099","Ajuste a ingresos por sueldos y salarios gravados","2017-01-06"]
[null,"NS","CAN"," Nueva Escocia",null,null,null,100,"Ajuste en Viáticos exentos","2017-01-06"]
[null,"NB","CAN","Nuevo Brunswick ",null,null,null,101,"ISR Retenido de ejercicio anterior","2017-12-05"]
[null,"MB","CAN"," Manitoba",null,null,null,102,"Ajuste a pagos por gratificaciones, primas, compensaciones, recompensas u otros a extrabajadores derivados de jubilación en parcialidades, gravados","2018-10-15"]
[null,"BC","CAN"," Columbia Británica",null,null,null,103,"Ajuste a pagos que se realicen a extrabajadores que obtengan una jubilación en parcialidades derivados de la ejecución de una resolución judicial o de un laudo gravados","2018-10-15"]
[null,"PE","CAN"," Isla del Príncipe Eduardo",null,null,null,104,"Ajuste a pagos que se realicen a extrabajadores que obtengan una jubilación en parcialidades derivados de la ejecución de una resolución judicial o de un laudo exentos","2018-10-15"]
[null,"SK","CAN"," Saskatchewan",null,null,null,105,"Ajuste a pagos que se realicen a extrabajadores que obtengan una jubilación en una sola exhibición derivados de la ejecución de una resolución judicial o de un laudo gravados","2018-10-15"]
[null,"AB","CAN"," Alberta",null,null,null,106,"Ajuste a pagos que se realicen a extrabajadores que obtengan una jubilación en una sola exhibición derivados de la ejecución de una resolución judicial o de un laudo exentos","2018-10-15"]
[null,"NL","CAN"," Terranova y Labrador"]
[null,"NT","CAN"," Territorios del Noroeste"]
[null,"YT","CAN"," Yukón"]
[null,"UN","CAN"," Nunavut"]
[]
[]
[]
[]
[]
[]
[]
[]
[]
[]
[]
[]
[]
[]
[null,"c_TipoPercepcion","Descripción","Gravado","Exento","Régimen","Régimen consula","c_TipoRegimen","Descripción"]
[null,1,"Sueldos, Salarios  Rayas y Jornales","a","r",2,{"$f":"F186-B186","v":1},2,"Sueldos (Incluye ingresos señalados en la fracción I del artículo 94 de LISR)",2]
[null,2,"Gratificación Anual (Aguinaldo)","a","a",2,{"$f":"F187-B187","v":0},3,"Jubilados",3412]
[null,3,"Participación de los Trabajadores en las Utilidades PTU","a","a",2,-1,4,"Pensionados",3412]
[null,4,"Reembolso de Gastos Médicos Dentales y Hospitalarios","a","a",2,-2,5,"Asimilados Miembros Sociedades Cooperativas Produccion",567891011]
[null,5,"Fondo de Ahorro","a","a",2,-3,6,"Asimilados Integrantes Sociedades Asociaciones Civiles",567891011]
[null,6,"Caja de ahorro","a","a",2,-4,7,"Asimilados Miembros consejos",567891011]
[null,9,"Contribuciones a Cargo del Trabajador Pagadas por el Patrón","a","r",2,-7,8,"Asimilados comisionistas",567891011]
[null,10,"Premios por puntualidad","a","r",2,-8,9,"Asimilados Honorarios",567891011]
[null,11,"Prima de Seguro de vida","a","a",2,-9,10,"Asimilados acciones",567891011]
[null,12,"Seguro de Gastos Médicos Mayores","a","a",2,-10,11,"Asimilados otros",567891011]
[null,13,"Cuotas Sindicales Pagadas por el Patrón","a","a",2,-11,12,"Jubilados o Pensionados",3412]
[null,14,"Subsidios por incapacidad","a","a",2,-12,13,"Indemnización o Separación",13]
[null,15,"Becas para trabajadores y/o hijos","a","a",2,-13,99,"Otro Regimen",99]
[null,19,"Horas extra","a","a",2,-17]
[null,20,"Prima dominical","a","a",2,-18]
[null,21,"Prima vacacional","a","a",2,-19]
[null,24,"Seguro de retiro","a","a",2,-22]
[null,26,"Reembolso por funeral","a","a",2,-24]
[null,27,"Cuotas de seguridad social pagadas por el patrón","r","a",2,-25]
[null,28,"Comisiones","a","r",2,-26]
[null,29,"Vales de despensa","a","a",2,-27]
[null,30,"Vales de restaurante","a","a",2,-28]
[null,31,"Vales de gasolina","a","a",2,-29]
[null,32,"Vales de ropa","a","a",2,-30]
[null,33,"Ayuda para renta","a","a",2,-31]
[null,34,"Ayuda para artículos escolares","a","a",2,-32]
[null,35,"Ayuda para anteojos","a","a",2,-33]
[null,36,"Ayuda para transporte","a","a",2,-34]
[null,37,"Ayuda para gastos de funeral","a","a",2,-35]
[null,38,"Otros ingresos por salarios","a","a",2,-36]
[null,47,"Alimentación diferentes a los establecidos en el Art 94 último párrafo LISR","a","a",2,-45]
[null,48,"Habitación","a","a",2,-46]
[null,49,"Premios por asistencia","a","r",2,-47]
[null,50,"Viáticos","a","a",2,-48]
[null,39,"Jubilaciones, pensiones o haberes de retiro","a","a",3412,3373]
[null,44,"Jubilaciones, pensiones o haberes de retiro en parcialidades","a","a",3412,3368]
[null,51,"Pagos por gratificaciones, primas, compensaciones, recompensas u otros a extrabajadores derivados de jubilación en parcialidades","a","r",3412,3361]
[null,52,"Pagos que se realicen a extrabajadores que obtengan una jubilación en parcialidades derivados de la ejecución de resoluciones judicial o de un laudo","a","a",3412,3360]
[null,53,"Pagos que se realicen a extrabajadores que obtengan una jubilación en una sola exhibición derivados de la ejecución de resoluciones judicial o de un laudo","a","a",3412,3359]
[null,22,"Prima por antigüedad","a","a",13,-9]
[null,23,"Pagos por separación","a","a",13,-10]
[null,25,"Indemnizaciones","a","a",13,-12]
[null,45,"Ingresos en acciones o títulos valor que representan bienes","a","r",567891011,567890966]
[null,46,"Ingresos asimilados a salarios","a","r",567891011,567890965]
[]
[]
[]
[]
[]
[]
[]
[]
[]
[]
[]
[]
[]
[]
[]
[]
[]
[]
[]
[]
[]
[]
[]
[]
[]
[]
[]
[]
[]
[]
[]
[]
[]
[]
[]
[]
[]
[]
[]
[]
[]
[]
[]
[]
[]
[]
[]
[]
[]
[]
[]
[]
[]
[]
[]
[]
[]
[]
[]
[]
[]
[]
[]
[]
[]
[]
[]
[]
[]
[]
[]
[]
[]
[]
[]
[]
[]
[]
[]
[]
[]
[]
[]
[]
[]
[]
[]
[]
[]
[]
[]
[]
[]
[]
[null,1,"Enero"]
[null,2,"Febrero"]
[null,3,"Marzo"]
[null,4,"Abril"]
[null,5,"Mayo"]
[null,6,"Junio"]
[null,7,"Julio"]
[null,8,"Agosto"]
[null,9,"Septiembre"]
[null,10,"Octubre"]
[null,11,"Noviembre"]
[null,12,"Diciembre"]

{"sheet":"c_Estado","index":11,"n_rows":100,"n_cols":5,"rows_kept":100,"cut":false,"hidden":true,"merged":[[0,0,0,2]]}
["Catálogo de estados. "]
[]
[]
[]
["c_Estado","c_Pais","Nombre del estado","Fecha inicio de vigencia","Fecha fin de vigencia"]
["AGU","MEX","Aguascalientes","2022-01-01"]
["BCN","MEX","Baja California","2022-01-01"]
["BCS","MEX","Baja California Sur","2022-01-01"]
["CAM","MEX","Campeche","2022-01-01"]
["CHP","MEX","Chiapas","2022-01-01"]
["CHH","MEX","Chihuahua","2022-01-01"]
["COA","MEX","Coahuila","2022-01-01"]
["COL","MEX","Colima","2022-01-01"]
["CMX","MEX","Ciudad de México","2022-01-01"]
["DUR","MEX","Durango","2022-01-01"]
["GUA","MEX","Guanajuato","2022-01-01"]
["GRO","MEX","Guerrero","2022-01-01"]
["HID","MEX","Hidalgo","2022-01-01"]
["JAL","MEX","Jalisco","2022-01-01"]
["MEX","MEX","Estado de México","2022-01-01"]
["MIC","MEX","Michoacán","2022-01-01"]
["MOR","MEX","Morelos","2022-01-01"]
["NAY","MEX","Nayarit","2022-01-01"]
["NLE","MEX","Nuevo León","2022-01-01"]
["OAX","MEX","Oaxaca","2022-01-01"]
["PUE","MEX","Puebla","2022-01-01"]
["QUE","MEX","Querétaro","2022-01-01"]
["ROO","MEX","Quintana Roo","2022-01-01"]
["SLP","MEX","San Luis Potosí","2022-01-01"]
["SIN","MEX","Sinaloa","2022-01-01"]
["SON","MEX","Sonora","2022-01-01"]
["TAB","MEX","Tabasco","2022-01-01"]
["TAM","MEX","Tamaulipas","2022-01-01"]
["TLA","MEX","Tlaxcala","2022-01-01"]
["VER","MEX","Veracruz","2022-01-01"]
["YUC","MEX","Yucatán","2022-01-01"]
["ZAC","MEX","Zacatecas","2022-01-01"]
["AL","USA","Alabama","2022-01-01"]
["AK","USA","Alaska","2022-01-01"]
["AZ","USA","Arizona","2022-01-01"]
["AR","USA","Arkansas","2022-01-01"]
["CA","USA","California","2022-01-01"]
["NC","USA","Carolina del Norte","2022-01-01"]
["SC","USA","Carolina del Sur","2022-01-01"]
["CO","USA","Colorado","2022-01-01"]
["CT","USA","Connecticut","2022-01-01"]
["ND","USA","Dakota del Norte","2022-01-01"]
["SD","USA","Dakota del Sur","2022-01-01"]
["DE","USA","Delaware","2022-01-01"]
["FL","USA","Florida","2022-01-01"]
["GA","USA","Georgia","2022-01-01"]
["HI","USA","Hawái","2022-01-01"]
["ID","USA","Idaho","2022-01-01"]
["IL","USA","Illinois","2022-01-01"]
["IN","USA","Indiana","2022-01-01"]
["IA","USA","Iowa","2022-01-01"]
["KS","USA","Kansas","2022-01-01"]
["KY","USA","Kentucky","2022-01-01"]
["LA","USA","Luisiana","2022-01-01"]
["ME","USA","Maine","2022-01-01"]
["MD","USA","Maryland","2022-01-01"]
["MA","USA","Massachusetts","2022-01-01"]
["MI","USA","Míchigan","2022-01-01"]
["MN","USA","Minnesota","2022-01-01"]
["MS","USA","Misisipi","2022-01-01"]
["MO","USA","Misuri","2022-01-01"]
["MT","USA","Montana","2022-01-01"]
["NE","USA","Nebraska","2022-01-01"]
["NV","USA","Nevada","2022-01-01"]
["NJ","USA","Nueva Jersey","2022-01-01"]
["NY","USA","Nueva York","2022-01-01"]
["NH","USA","Nuevo Hampshire","2022-01-01"]
["NM","USA","Nuevo México","2022-01-01"]
["OH","USA","Ohio","2022-01-01"]
["OK","USA","Oklahoma","2022-01-01"]
["OR","USA","Oregón","2022-01-01"]
["PA","USA","Pensilvania","2022-01-01"]
["RI","USA","Rhode Island","2022-01-01"]
["TN","USA","Tennessee","2022-01-01"]
["TX","USA","Texas","2022-01-01"]
["UT","USA","Utah","2022-01-01"]
["VT","USA","Vermont","2022-01-01"]
["VA","USA","Virginia","2022-01-01"]
["WV","USA","Virginia Occidental","2022-01-01"]
["WA","USA","Washington","2022-01-01"]
["WI","USA","Wisconsin","2022-01-01"]
["WY","USA","Wyoming","2022-01-01"]
["ON","CAN","Ontario ","2022-01-01"]
["QC","CAN"," Quebec ","2022-01-01"]
["NS","CAN"," Nueva Escocia","2022-01-01"]
["NB","CAN","Nuevo Brunswick ","2022-01-01"]
["MB","CAN"," Manitoba","2022-01-01"]
["BC","CAN"," Columbia Británica","2022-01-01"]
["PE","CAN"," Isla del Príncipe Eduardo","2022-01-01"]
["SK","CAN"," Saskatchewan","2022-01-01"]
["AB","CAN"," Alberta","2022-01-01"]
["NL","CAN"," Terranova y Labrador","2022-01-01"]
["NT","CAN"," Territorios del Noroeste","2022-01-01"]
["YT","CAN"," Yukón","2022-01-01"]
["UN","CAN"," Nunavut","2022-01-01"]

{"sheet":"DATOS","index":12,"n_rows":305,"n_cols":11,"rows_kept":305,"cut":false,"hidden":true,"merged":[[72,8,72,9]]}
[]
[]
[]
[null,"LICENCIA"]
[null,"NOMBRE","NO INSTALADO"]
[null,"RFC"]
[]
[null,"No. para solicitar contraseña",null,{"$f":"IFERROR(MID(C4,2,1)&MID(C5,3,2)&MID(C6,5,3),\"\")","v":" I"}]
[]
[null,"Contraseña para ingresar",null,{"$f":"C12&C13&C14&C15&C16&C17","v":"K9"},null,null,null,null,"A",5]
[null,null,null,null,null,null,null,null,"B",9]
[null,{"$f":"IFERROR(MID($D$8,1,1),X)","v":" "},{"$f":"IFERROR(VLOOKUP(B12,$I$10:$J$50,2,FALSE),\"\")","v":"K"},null,null,null,null,null,"C",2]
[null,{"$f":"IFERROR(MID($D$8,2,1),X)","v":"I"},9,null,null,null,null,null,"D",4]
[null,{"$f":"IFERROR(MID($D$8,3,1),X)","v":""},"",null,null,null,null,null,"E",8]
[null,{"$f":"IFERROR(MID($D$8,4,1),X)","v":""},"",null,null,null,null,null,"F",3]
[null,{"$f":"IFERROR(MID($D$8,5,1),X)","v":""},"",null,null,null,null,null,"G",7]
[null,{"$f":"IFERROR(MID($D$8,6,1),X)","v":""},"",null,null,null,null,null,"H",2]
[null,null,null,null,null,null,null,null,"I",9]
[null,null,null,null,null,null,null,null,"J",6]
[null,null,null,null,null,null,null,null,"K",1]
[null,null,null,null,null,null,null,null,"L",8]
[null,null,null,null,null,null,null,null,"M",2]
[null,null,null,null,null,null,null,null,"N",0]
[null,null,null,null,null,null,null,null,"Ñ",4]
[null,null,null,null,null,null,null,null,"O",7]
[null,null,null,null,null,null,null,null,"P",3]
[null,null,null,null,null,null,null,null,"Q",9]
[null,null,null,null,null,null,null,null,"R",5]
[null,null,null,null,null,null,null,null,"S",2]
[null,null,null,null,null,null,null,null,"T",4]
[null,null,null,null,null,null,null,null,"U",7]
[null,null,null,null,null,null,null,null,"V",6]
[null,null,null,null,null,null,null,null,"W",5]
[null,null,null,null,null,null,null,null,"X",9]
[null,null,null,null,null,null,null,null,"Y",3]
[null,null,null,null,null,null,null,null,"Z",8]
[null,null,null,null,null,null,null,null,"&",4]
[null,null,null,null,null,null,null,null,"0","A"]
[null,null,null,null,null,null,null,null,"1","D"]
[null,null,null,null,null,null,null,null,"2","G"]
[null,null,null,null,null,null,null,null,"3","T"]
[null,null,null,null,null,null,null,null,"4","R"]
[null,null,null,null,null,null,null,null,"5","H"]
[null,null,null,null,null,null,null,null,"6","C"]
[null,null,null,null,null,null,null,null,"7","K"]
[null,null,null,null,null,null,null,null,"8","O"]
[null,null,null,null,null,null,null,null,"9","P"]
[null,null,null,null,null,null,null,null,".","&"]
[null,null,null,null,null,null,null,null,",","Y"]
[null,null,null,null,null,null,null,null," ","K"]
[]
[]
[]
[]
[]
[null,"Enero","Diciembre",12]
[null,"Febrero","Enero",11]
[null,"Marzo","Febrero",10]
[null,"Abril","Marzo",9]
[null,"Mayo","Abril",8]
[null,"Junio","Mayo",7]
[null,"Julio","Junio",6]
[null,"Agosto","Julio",5]
[null,"Septiembre","Agosto",4]
[null,"Octubre","Septiembre",3]
[null,"Noviembre","Octubre",2]
[null,"Diciembre","Noviembre",1]
[]
[]
[]
[null,null,"Año en que se genero la pérdida"]
[null,null,"Importe de la pérdida"]
[null,null,null,null,null,null,null,null,"Amortización de pérdidas"]
[null,"No. de actualización","Año de actualización","Monto de la pérdida","INPC más reciente","INPC más antiguo","Factor de actualización","Pérdida fiscal actualizada","Año de amortización","Pérdida amortizada","Saldo pendiente"]
[null,{"$f":"IF(AND(D71<>\"\",D72<>\"\"),\"1\",\"\")","v":""},{"$f":"IF(D71<>\"\",D71,\"\")","v":""},{"$f":"IFERROR(IF(D72<>\"\",D72,\"\"),\"\")","v":""},{"$f":"IFERROR(INDEX(TINPC,MATCH(D71,INPCA,0),MATCH(\"Diciembre\",INPCM,0)),\"\")","v":""},{"$f":"IFERROR(INDEX(TINPC,MATCH(D71,INPCA,0),MATCH(\"Julio\",INPCM,0)),\"\")","v":""},{"$f":"IFERROR(IF((E75/F75)<1,1,TRUNC(E75/F75,4)),\"\")","v":""},{"$f":"IFERROR(ROUND(D75*G75,0),\"\")","v":""},null,null,{"$f":"IFERROR(H75-J75,\"\")","v":""}]
[null,{"$f":"IFERROR(IF(B75<>\"\",B75+1,\"\"),\"\")","v":""},{"$f":"IFERROR(C75+1,\"\")","v":""},{"$f":"IFERROR(K75,\"\")","v":""},{"$f":"IFERROR(INDEX(TINPC,MATCH(C76,INPCA,0),MATCH(\"Junio\",INPCM,0)),\"\")","v":""},{"$f":"IFERROR(E75,\"\")","v":""},{"$f":"IFERROR(IF((E76/F76)<1,1,TRUNC(E76/F76,4)),\"\")","v":""},{"$f":"IFERROR(ROUND(D76*G76,0),\"\")","v":""},null,null,{"$f":"IFERROR(H76-J76,\"\")","v":""}]
[null,{"$f":"IFERROR(IF(B76<>\"\",B76+1,\"\"),\"\")","v":""},{"$f":"IFERROR(C76+1,\"\")","v":""},{"$f":"IFERROR(K76,\"\")","v":""},"",{"$f":"E76","v":""},"","",null,null,""]
[null,"","",{"$f":"IFERROR(K77,\"\")","v":""},"",{"$f":"E77","v":""},"","",null,null,""]
[null,"","","","","","","",null,null,""]
[null,"","","","","","","",null,null,""]
[null,"","","","","","","",null,null,""]
[null,"","","","","","","",null,null,""]
[null,"","","","","","","",null,null,""]
[null,"","","","","","","",null,null,""]
[]
[null,"www.acfmsc.com"]
[]
[null,"Cargos y gastos diferidos (NO SELECCIONAR)",null,null,null,{"$f":"\" \"&B88","v":" Cargos y gastos diferidos (NO SELECCIONAR)"}]
[null,"   Cargos diferidos",null,null,null,{"$f":"\"  \"&B89","v":"     Cargos diferidos"}]
[null,"   Erogaciones realizadas en periodos preoperativos",null,null,null,{"$f":"\"  \"&B90","v":"     Erogaciones realizadas en periodos preoperativos"}]
[null,"   Regalías, asistencia técnica, otor gastos diferidos",null,null,null,"     Regalías, asistencia técnica, otor gastos diferidos"]
[null,"   Activos intangibles",null,null,null,"     Activos intangibles"]
[null,"Construcciones (NO SELECCIONAR)",null,null,null,"  Construcciones (NO SELECCIONAR)"]
[null,"   Inmuebles declarados como monumentos arqueológicos, artísticos, históricos o patrimoniales",null,null,null,"     Inmuebles declarados como monumentos arqueológicos, artísticos, históricos o patrimoniales"]
[null,"   Instalaciones, adiciones, reparaciones, mejoras, adaptaciones en un lote minero",null,null,null,"     Instalaciones, adiciones, reparaciones, mejoras, adaptaciones en un lote minero"]
[null,"Ferrocarriles (NO SELECCIONAR)",null,null,null,"  Ferrocarriles (NO SELECCIONAR)"]
[null,"   Bombas de suministro de combustible a trenes",null,null,null,"     Bombas de suministro de combustible a trenes"]
[null,"   Vías férreas",null,null,null,"     Vías férreas"]
[null,"   Carros de ferrocarril, locomotoras, armones y autoarmones",null,null,null,"     Carros de ferrocarril, locomotoras, armones y autoarmones"]
[null,"   Maquinaria niveladora de vías, desclavados, esmeriles para vías, gastos de motor para levantar la vía, removedora, insertadora y taladradora de durmientes",null,null,null,"     Maquinaria niveladora de vías, desclavados, esmeriles para vías, gastos de motor para levantar la vía, removedora, insertadora y taladradora de durmientes"]
[null,"   Equipo de comunicación, señalización y telemando",null,null,null,"     Equipo de comunicación, señalización y telemando"]
[null,"Mobiliario y equipo de oficina (NO SELECCIONAR)",null,null,null,"  Mobiliario y equipo de oficina (NO SELECCIONAR)"]
[null,"   Mobiliario y equipo de oficina  ",null,null,null,"     Mobiliario y equipo de oficina  "]
[null,"Embarcaciones (NO SELECCIONAR)",null,null,null,"  Embarcaciones (NO SELECCIONAR)"]
[null,"   Embarcaciones",null,null,null,"     Embarcaciones"]
[null,"Aviones (NO SELECCIONAR)",null,null,null,"  Aviones (NO SELECCIONAR)"]
[null,"  Dedicados a la aerofumigación agrícola",null,null,null,"    Dedicados a la aerofumigación agrícola"]
[null,"  Para los demás",null,null,null,"    Para los demás"]
[null,"Automóviles (NO SELECCIONAR)",null,null,null,"  Automóviles (NO SELECCIONAR)"]
[null,"  Automóviles, autobuses, camiones de carga, tractocamiones, montacargas y remolques",null,null,null,"    Automóviles, autobuses, camiones de carga, tractocamiones, montacargas y remolques"]
[null,"Computadoras (NO SELECCIONAR)",null,null,null,"  Computadoras (NO SELECCIONAR)"]
[null,"  Computadoras personales de escritorio y portátiles; servidores; impresoras, lectore ópticos, graficadores, lectores de código de barras, digitalizadores, unidades de almacenamiento externo",null,null,null,"    Computadoras personales de escritorio y portátiles; servidores; impresoras, lectore ópticos, graficadores, lectores de código de barras, digitalizadores, unidades de almacenamiento externo"]
[null,"Dados troqueles moldes matrices y herramental (NO SELECCIONAR)",null,null,null,"  Dados troqueles moldes matrices y herramental (NO SELECCIONAR)"]
[null,"  Dados, troqueles, moldes, matrices y herramental",null,null,null,"    Dados, troqueles, moldes, matrices y herramental"]
[null,"Semovientes y vegetales (NO SELECCIONAR)",null,null,null,"  Semovientes y vegetales (NO SELECCIONAR)"]
[null,"  Semovientes y vegetales  ",null,null,null,"    Semovientes y vegetales  "]
[null,"Comunicaciones telefónicas (NO SELECCIONAR)",null,null,null,"  Comunicaciones telefónicas (NO SELECCIONAR)"]
[null,"  Torres de transmisión y cables, excepto los de fibra óptica",null,null,null,"    Torres de transmisión y cables, excepto los de fibra óptica"]
[null,"  Sistemas de radio, equipo de transmisión, radiotransmisión de microonda digital o analógica, torres de microondas y guías de onda",null,null,null,"    Sistemas de radio, equipo de transmisión, radiotransmisión de microonda digital o analógica, torres de microondas y guías de onda"]
[null,"  Equipo utilizado en la transmisión como circuitos de la planta interna que no forman parte de la conmutación",null,null,null,"    Equipo utilizado en la transmisión como circuitos de la planta interna que no forman parte de la conmutación"]
[null,"  Equipo de la central telefónica destinado a la conmutación de llamadas de tecnología destina a la electromecánica",null,null,null,"    Equipo de la central telefónica destinado a la conmutación de llamadas de tecnología destina a la electromecánica"]
[null,"  Para los demás",null,null,null,"    Para los demás"]
[null,"Comunicaciones satelitales (NO SELECCIONAR)",null,null,null,"  Comunicaciones satelitales (NO SELECCIONAR)"]
[null,"  Segmento satelital en el espacio, incluyendo el cuerpo principal del satélite, los transpondedores, las antenas para la transmisión y recepción de comunicaciones digitales y análogas y el equipo",null,null,null,"    Segmento satelital en el espacio, incluyendo el cuerpo principal del satélite, los transpondedores, las antenas para la transmisión y recepción de comunicaciones digitales y análogas y el equipo"]
[null,"  Equipo satelital en tierra, incluyendo las antenas para la transmisión y recepción de comunicaciones digitales y análogas y el equipo para el monitoreo del satélite",null,null,null,"    Equipo satelital en tierra, incluyendo las antenas para la transmisión y recepción de comunicaciones digitales y análogas y el equipo para el monitoreo del satélite"]
[null,"Adaptaciones que se realicen a instalaciones al activo fijo (NO SELECCIONAR)",null,null,null,"  Adaptaciones que se realicen a instalaciones al activo fijo (NO SELECCIONAR)"]
[null,"  Adaptaciones a instalaciones al cativo fijo para personas con discapacidad",null,null,null,"    Adaptaciones a instalaciones al cativo fijo para personas con discapacidad"]
[null,"Maquinaria y equipo para la generación de energía (NO SELECCIONAR)",null,null,null,"  Maquinaria y equipo para la generación de energía (NO SELECCIONAR)"]
[null,"  Maquinaria y equipo para la generación de energía proveniente de fuentes renovables o de sistemas de cogeneración de electricidad eficiente",null,null,null,"    Maquinaria y equipo para la generación de energía proveniente de fuentes renovables o de sistemas de cogeneración de electricidad eficiente"]
[null,"Bicicletas (NO SELECCIONAR)",null,null,null,"  Bicicletas (NO SELECCIONAR)"]
[null,"  Bicicletas convencionales, bicicletas y motocicletas cuya propulsión sea a través de baterías eléctricas recargables",null,null,null,"    Bicicletas convencionales, bicicletas y motocicletas cuya propulsión sea a través de baterías eléctricas recargables"]
[null,"Derecho de usufructo (NO SELECCIONAR)",null,null,null,"  Derecho de usufructo (NO SELECCIONAR)"]
[null,"  Derecho de usufructo constituido sobre un bien inmueble",null,null,null,"    Derecho de usufructo constituido sobre un bien inmueble"]
[null,"Maquinaria y equipo (NO SELECCIONAR)",null,null,null,"  Maquinaria y equipo (NO SELECCIONAR)"]
[null,"  Generación, conducción, transformación y distribución de electricidad; en la molienda de granos; en la producción de azúcar y sus derivados; en la fabricación de aceites comestibles; en el transporte marítimo, fluvial y lacustre",null,null,null,"    Generación, conducción, transformación y distribución de electricidad; en la molienda de granos; en la producción de azúcar y sus derivados; en la fabricación de aceites comestibles; en el transporte marítimo, fluvial y lacustre"]
[null,"  Producción de metal obtenido en primer proceso; en la fabricación de productos de tabaco y derivados del carbón natural",null,null,null,"    Producción de metal obtenido en primer proceso; en la fabricación de productos de tabaco y derivados del carbón natural"]
[null,"  Fabricación de pulpa, papel y productos similares",null,null,null,"    Fabricación de pulpa, papel y productos similares"]
[null,"  Fabricación de vehículos de motos y sus partes, construcción de ferrocarriles y navíos, fabricación de productos de metal, maquinaría y de instrumentos profesionales y científicos, elaboración de productos alimentación de bebidas, excepto granos, azúcar, aceites comestibles y derivados",null,null,null,"    Fabricación de vehículos de motos y sus partes, construcción de ferrocarriles y navíos, fabricación de productos de metal, maquinaría y de instrumentos profesionales y científicos, elaboración de productos alimentación de bebidas, excepto granos, azúcar, aceites comestibles y derivados"]
[null,"  Curtido de piel y la fabricación de artículos de piel, elaboración de productos químicos, petroquímicos y farmacobiológicos, fabricación de productos de caucho y de plástico; en la impresión y publicación gráfica",null,null,null,"    Curtido de piel y la fabricación de artículos de piel, elaboración de productos químicos, petroquímicos y farmacobiológicos, fabricación de productos de caucho y de plástico; en la impresión y publicación gráfica"]
[null,"  Transporte eléctrico; en la infraestructura fija para el transporte, almacenamiento y procesamiento de hidrocarburos, en plataformas y embarcaciones de perforación de pozos y embarcaciones de procesamiento y almacenamiento de hidrocarburos",null,null,null,"    Transporte eléctrico; en la infraestructura fija para el transporte, almacenamiento y procesamiento de hidrocarburos, en plataformas y embarcaciones de perforación de pozos y embarcaciones de procesamiento y almacenamiento de hidrocarburos"]
[null,"  Inversiones en equipos fijos de alimentación para vehículos eléctricos, públicos",null,null,null,"    Inversiones en equipos fijos de alimentación para vehículos eléctricos, públicos"]
[null,"  Inversiones en equipos fijos de alimentación para vehículos eléctricos, no públicos",null,null,null,"    Inversiones en equipos fijos de alimentación para vehículos eléctricos, no públicos"]
[null,"  Fabricación, acabado, teñido y estampado de productos textiles, así como de prendas para el vestido",null,null,null,"    Fabricación, acabado, teñido y estampado de productos textiles, así como de prendas para el vestido"]
[null,"  Industria minera; en la construcción de aeronaves y en el transporte terrestre de carga y pasajeros",null,null,null,"    Industria minera; en la construcción de aeronaves y en el transporte terrestre de carga y pasajeros"]
[null,"  Transporte aéreo. Transmisión de los servicios de comunicación proporcionados por telégrafos y por las estaciones de radio y televisión",null,null,null,"    Transporte aéreo. Transmisión de los servicios de comunicación proporcionados por telégrafos y por las estaciones de radio y televisión"]
[null,"  Restaurantes",null,null,null,"    Restaurantes"]
[null,"  Industria de la construcción actividades de agricultura, ganadería , silvicultura y pesca",null,null,null,"    Industria de la construcción actividades de agricultura, ganadería , silvicultura y pesca"]
[null,"  Destinados directamente a la investigación de nuevos productos o desarrollo de tecnología en el país",null,null,null,"    Destinados directamente a la investigación de nuevos productos o desarrollo de tecnología en el país"]
[null,"  Manufactura, ensamble y transformación de componentes magnéticos para discos duros y tarjetas electrónicas para la industria de la computación",null,null,null,"    Manufactura, ensamble y transformación de componentes magnéticos para discos duros y tarjetas electrónicas para la industria de la computación"]
[null,"  Otras actividades no especificadas",null,null,null,"    Otras actividades no especificadas"]
[]
[]
[]
[]
[null,"Cargos y gastos diferidos "]
[null,"Construcciones "]
[null,"Ferrocarriles "]
[null,"Mobiliario y equipo de oficina "]
[null,"Embarcaciones "]
[null,"Aviones "]
[null,"Automóviles "]
[null,"Computadoras "]
[null,"Dados troqueles moldes matrices y herramental "]
[null,"Semovientes y vegetales "]
[null,"Comunicaciones telefónicas "]
[null,"Comunicaciones satelitales "]
[null,"Adaptaciones que se realicen a instalaciones al activo fijo "]
[null,"Maquinaria y equipo para la generación de energía "]
[null,"Bicicletas "]
[null,"Derecho de usufructo"]
[null,"Maquinaria y equipo "]
[]
[]
[]
[]
[]
[null,"Actividades de operación (NO SELECCIONAR)"]
[null,"Cobros a clientes"]
[null,"(-) Pago a proveedores"]
[null,"(-) Pago a empleados y otros proveedores de bienes y servicios"]
[null,"(-) Pago por impuestos a la utilidad"]
[null,"(-) Pago por impuestos a la utilidad"]
[null,"(+/-) Sin partidas relacionadas actividades de operación"]
[null,"Actividades de inversión (NO SELECCIONAR)"]
[null,"Negocio adquirido"]
[null,"Intereses cobrados"]
[null,"Dividendos cobrados"]
[null,"Adquisición de propiedades, planta y equipo"]
[null,"Cobro de venta de propiedades, planta y equipo"]
[null,"Adquisición de acciones"]
[null,"Adquisición de activos intangibles"]
[null,"Adquisición de otros activos"]
[null,"(+/-) Sin partidas relacionadas con actividades de inversión"]
[null,"Actividades de financiamiento (NO SELECCIONAR)"]
[null,"Entrada de efectivo por emisión de capital"]
[null,"Entrada de efectivo por aportaciones para futuros aumentos de capital"]
[null,"Obtención de prestamos (Partes relacionadas)"]
[null,"Obtención de préstamos (Partes no relacionadas)"]
[null,"Pago de pasivos a largo plazo"]
[null,"Pago de préstamos con partes relacionadas"]
[null,"Pago de préstamos con partes no relacionadas"]
[null,"Pago de pasivos derivados de arrendamiento financiero"]
[null,"Intereses pagados"]
[null,"Dividendos pagados"]
[null,"(+/-) Sin actividades de financiamiento"]
[null,"Efectos por cambios en el valor del efectivo (NO SELECCIONAR)"]
[null,"Efectos por cambios en el valor del efectivo por conversión de los saldos y fljos de efectivo de sus operaciones extranjeras a la moneda de informe"]
[null,"Efectos por cambios en el valor del efectivo por inflación asociado con los saldos y flujos de efectivo de entidades que conforman la entidad económica consolidada"]
[]
[]
[null,"Partidas relacionadas con actividades de inversión"]
[null,"Depreciaciones y Amortizaciones"]
[null,"Utilidad por venta de propiedades, planta y equipo"]
[null,"Intereses a favor"]
[null,"Divedendos cobrados"]
[null,"Otros ajustes por partidas asociadas con actividades de inversion"]
[null,"Partidas relacionadas con actividades de financiamiento"]
[null,"Intereses a cargo"]
[null,"Intereses asociados con préstamos interbancarios y de otros organismos"]
[null,"Otros intereses"]
[null,"(+/-) Sin actividades de financiamiento"]
[null,"Partidas relacionadas con actividades de operación"]
[null,"Cobros a clientes"]
[null,"Pago a proveedores"]
[null,"Pago a empleados y otros proveedores de bienes y servicios"]
[null,"Pago por impuestos a la utilidad"]
[null,"(+/-) Sin partidas relacionadas actividades de operación"]
[null,"Actividades de inversión"]
[null,"Negocio adquirido"]
[null,"Intereses cobrados"]
[null,"Dividendos cobrados"]
[null,"Adquisición de propiedades, planta y equipo"]
[null,"Cobro de venta de propiedades, planta y equipo"]
[null,"Adquisición de acciones"]
[null,"Adquisición de activos intangibles"]
[null,"Adquisición de otros activos"]
[null,"Otros cobros por actividades de inversión"]
[null,"Otros pagos por actividades de inversión"]
[null,"(+/-) Sin partidas relacionadas con actividades de inversión"]
[null,"Actividades de financiamiento"]
[null,"Entrada de efectivo por emisión de capital"]
[null,"Esntrada de efectivo por aportaciones para futuros aumentos de capital"]
[null,"Obtención de préstamos (Partes relacionadas)"]
[null,"Obtención de préstamos (Partes no relacionadas)"]
[null,"Pago de pasivos a largo plazo"]
[null,"Pago de préstamos con partes relacionadas"]
[null,"Pago de préstamos con partes no relacionadas"]
[null,"Pago de pasivos derivados de arrendamiento financiero"]
[null,"Intereses pagado"]
[null,"Dividendos pagados"]
[null,"Otros cobros por actividades de financiameinto"]
[null,"Otros pagos por actividades de financiamiento"]
[null,"(+/-) Sin actividades de financiamiento"]
[null,"Flujos netos de efectivo de actividades de financiamiento"]
[null,"Efectos por cambios en el valor del efectivo"]
[null,"Efectos por cambios en el valor del efectivo por conversión de los saldos y fljos de efectivo de sus operaciones extranjeras a la moneda de informe"]
[null,"Efectos por cambios en el valor del efectivo por inflación asociado con los saldos y flujos de efectivo de entidades que conforman la entidad económica consolidada"]
[]
[]
[]
[]
[]
[]
[]
[]
[]
[]
[]
[]
[]
[null,"Costo identificado"]
[null,"Costo promedio"]
[null,"Detallista"]
[null,"Primeras entradas primeras salidas (PEPS)"]
[]
[]
[null,"Estándar"]
[null,"Estimados"]
[]
[null,"Costeo absorbente"]
[]
[]
[]
[null,"Costo de lo vendido"]
[null,"Inventario inicial"]
[null,"(+) Compras netas nacionales"]
[null,"(+) Compras netas extranjeras"]
[null,"(-) Inventario final"]
[null,"(=) Total de materiales utilizados o comercializados",{"$f":"IFERROR(C285+C286+C287-C288,0)","v":0}]
[null,"(+) Mano de obra directa de fabricación"]
[null,"(+) Gastos relacionados a la mano de obra"]
[null,"(+) Maquilas"]
[null,"(+) Gastos indirectos"]
[null,"(+) Deducción de inversiones"]
[null,"(+) Mano de obra indirecta de fabricación"]
[null,"(=) Costo de lo vendido",{"$f":"IFERROR(SUM(C289:C295),0)","v":0}]
[]
[null,"Costo de lo vendido"]
[null,"Costo de lo vendido"]
[]
[null,"Determinación del costo de producción"]
[null,"Importe de las materias primas"]
[null,"(+) Mano de obra directa"]
[null,"(+) Costos indirectos de fabricación"]
[null,"(=) Costo de producción",{"$f":"SUM(C302:C304)","v":0}]